{"text_format":"3","workbook":"xlsx","n_sheets":2,"sheets":["Kursplan","Kursliste"],"not_rendered":{"defined_names":17},"read":"whole","date_system":"1900"}

{"sheet":"Kursplan","index":0,"n_rows":56,"n_cols":9,"rows_kept":56,"merged":[[0,1,1,5],[0,8,1,8]]}
[null,"KURSPLAN",{"$nulls":4},"ZEITPLANBEGINN","ZEITINTERVALL","Kursliste"]
[{"$nulls":6},"08:00:00","15 MIN"]
[null,"UHRZEIT","SONNTAG","MONTAG","DIENSTAG","MITTWOCH","DONNERSTAG","FREITAG","SAMSTAG"]
[null,{"$f":"ZeitplanAnfang","v":"08:00:00"},{"$f":"IFERROR(INDEX(Kursliste[],MATCH(SUMPRODUCT((Kursliste[TAG]=Kursplan[[#Headers],[SONNTAG]])*(ROUNDDOWN($B4,10)>=ROUNDDOWN(Kursliste[ANFANGSZEIT],10))*($B4<=Kursliste[ENDZEIT]),Kursliste[EINDEUTIG]),Kursliste[EINDEUTIG],0),2),0)","v":0},{"$f":"IFERROR(INDEX(Kursliste[],MATCH(SUMPRODUCT((Kursliste[TAG]=Kursplan[[#Headers],[MONTAG]])*(ROUNDDOWN($B4,10)>=ROUNDDOWN(Kursliste[ANFANGSZEIT],10))*($B4<=Kursliste[ENDZEIT]),Kursliste[EINDEUTIG]),Kursliste[EINDEUTIG],0),2),0)","v":0},{"$f":"IFERROR(INDEX(Kursliste[],MATCH(SUMPRODUCT((Kursliste[TAG]=Kursplan[[#Headers],[DIENSTAG]])*(ROUNDDOWN($B4,10)>=ROUNDDOWN(Kursliste[ANFANGSZEIT],10))*($B4<=Kursliste[ENDZEIT]),Kursliste[EINDEUTIG]),Kursliste[EINDEUTIG],0),2),0)","v":0},{"$f":"IFERROR(INDEX(Kursliste[],MATCH(SUMPRODUCT((Kursliste[TAG]=Kursplan[[#Headers],[MITTWOCH]])*(ROUNDDOWN($B4,10)>=ROUNDDOWN(Kursliste[ANFANGSZEIT],10))*($B4<=Kursliste[ENDZEIT]),Kursliste[EINDEUTIG]),Kursliste[EINDEUTIG],0),2),0)","v":0},{"$f":"IFERROR(INDEX(Kursliste[],MATCH(SUMPRODUCT((Kursliste[TAG]=Kursplan[[#Headers],[DONNERSTAG]])*(ROUNDDOWN($B4,10)>=ROUNDDOWN(Kursliste[ANFANGSZEIT],10))*($B4<=Kursliste[ENDZEIT]),Kursliste[EINDEUTIG]),Kursliste[EINDEUTIG],0),2),0)","v":0},{"$f":"IFERROR(INDEX(Kursliste[],MATCH(SUMPRODUCT((Kursliste[TAG]=Kursplan[[#Headers],[FREITAG]])*(ROUNDDOWN($B4,10)>=ROUNDDOWN(Kursliste[ANFANGSZEIT],10))*($B4<=Kursliste[ENDZEIT]),Kursliste[EINDEUTIG]),Kursliste[EINDEUTIG],0),2),0)","v":0},{"$f":"IFERROR(INDEX(Kursliste[],MATCH(SUMPRODUCT((Kursliste[TAG]=Kursplan[[#Headers],[SAMSTAG]])*(ROUNDDOWN($B4,10)>=ROUNDDOWN(Kursliste[ANFANGSZEIT],10))*($B4<=Kursliste[ENDZEIT]),Kursliste[EINDEUTIG]),Kursliste[EINDEUTIG],0),2),0)","v":0}]
[null,{"$f":"B4+Schrittweite","v":"08:15:00"},{"$f":"IFERROR(INDEX(Kursliste[],MATCH(SUMPRODUCT((Kursliste[TAG]=Kursplan[[#Headers],[SONNTAG]])*(ROUNDDOWN($B5,10)>=ROUNDDOWN(Kursliste[ANFANGSZEIT],10))*($B5<=Kursliste[ENDZEIT]),Kursliste[EINDEUTIG]),Kursliste[EINDEUTIG],0),2),0)","v":0},{"$f":"IFERROR(INDEX(Kursliste[],MATCH(SUMPRODUCT((Kursliste[TAG]=Kursplan[[#Headers],[MONTAG]])*(ROUNDDOWN($B5,10)>=ROUNDDOWN(Kursliste[ANFANGSZEIT],10))*($B5<=Kursliste[ENDZEIT]),Kursliste[EINDEUTIG]),Kursliste[EINDEUTIG],0),2),0)","v":"MTH-113"},{"$f":"IFERROR(INDEX(Kursliste[],MATCH(SUMPRODUCT((Kursliste[TAG]=Kursplan[[#Headers],[DIENSTAG]])*(ROUNDDOWN($B5,10)>=ROUNDDOWN(Kursliste[ANFANGSZEIT],10))*($B5<=Kursliste[ENDZEIT]),Kursliste[EINDEUTIG]),Kursliste[EINDEUTIG],0),2),0)","v":0},{"$f":"IFERROR(INDEX(Kursliste[],MATCH(SUMPRODUCT((Kursliste[TAG]=Kursplan[[#Headers],[MITTWOCH]])*(ROUNDDOWN($B5,10)>=ROUNDDOWN(Kursliste[ANFANGSZEIT],10))*($B5<=Kursliste[ENDZEIT]),Kursliste[EINDEUTIG]),Kursliste[EINDEUTIG],0),2),0)","v":"MTH-113"},{"$f":"IFERROR(INDEX(Kursliste[],MATCH(SUMPRODUCT((Kursliste[TAG]=Kursplan[[#Headers],[DONNERSTAG]])*(ROUNDDOWN($B5,10)>=ROUNDDOWN(Kursliste[ANFANGSZEIT],10))*($B5<=Kursliste[ENDZEIT]),Kursliste[EINDEUTIG]),Kursliste[EINDEUTIG],0),2),0)","v":0},{"$f":"IFERROR(INDEX(Kursliste[],MATCH(SUMPRODUCT((Kursliste[TAG]=Kursplan[[#Headers],[FREITAG]])*(ROUNDDOWN($B5,10)>=ROUNDDOWN(Kursliste[ANFANGSZEIT],10))*($B5<=Kursliste[ENDZEIT]),Kursliste[EINDEUTIG]),Kursliste[EINDEUTIG],0),2),0)","v":"MTH-113"},{"$f":"IFERROR(INDEX(Kursliste[],MATCH(SUMPRODUCT((Kursliste[TAG]=Kursplan[[#Headers],[SAMSTAG]])*(ROUNDDOWN($B5,10)>=ROUNDDOWN(Kursliste[ANFANGSZEIT],10))*($B5<=Kursliste[ENDZEIT]),Kursliste[EINDEUTIG]),Kursliste[EINDEUTIG],0),2),0)","v":0}]
[null,"08:30:00",{"$f":"IFERROR(INDEX(Kursliste[],MATCH(SUMPRODUCT((Kursliste[TAG]=Kursplan[[#Headers],[SONNTAG]])*(ROUNDDOWN($B6,10)>=ROUNDDOWN(Kursliste[ANFANGSZEIT],10))*($B6<=Kursliste[ENDZEIT]),Kursliste[EINDEUTIG]),Kursliste[EINDEUTIG],0),2),0)","v":0},{"$f":"IFERROR(INDEX(Kursliste[],MATCH(SUMPRODUCT((Kursliste[TAG]=Kursplan[[#Headers],[MONTAG]])*(ROUNDDOWN($B6,10)>=ROUNDDOWN(Kursliste[ANFANGSZEIT],10))*($B6<=Kursliste[ENDZEIT]),Kursliste[EINDEUTIG]),Kursliste[EINDEUTIG],0),2),0)","v":"MTH-113"},{"$f":"IFERROR(INDEX(Kursliste[],MATCH(SUMPRODUCT((Kursliste[TAG]=Kursplan[[#Headers],[DIENSTAG]])*(ROUNDDOWN($B6,10)>=ROUNDDOWN(Kursliste[ANFANGSZEIT],10))*($B6<=Kursliste[ENDZEIT]),Kursliste[EINDEUTIG]),Kursliste[EINDEUTIG],0),2),0)","v":0},{"$f":"IFERROR(INDEX(Kursliste[],MATCH(SUMPRODUCT((Kursliste[TAG]=Kursplan[[#Headers],[MITTWOCH]])*(ROUNDDOWN($B6,10)>=ROUNDDOWN(Kursliste[ANFANGSZEIT],10))*($B6<=Kursliste[ENDZEIT]),Kursliste[EINDEUTIG]),Kursliste[EINDEUTIG],0),2),0)","v":"MTH-113"},{"$f":"IFERROR(INDEX(Kursliste[],MATCH(SUMPRODUCT((Kursliste[TAG]=Kursplan[[#Headers],[DONNERSTAG]])*(ROUNDDOWN($B6,10)>=ROUNDDOWN(Kursliste[ANFANGSZEIT],10))*($B6<=Kursliste[ENDZEIT]),Kursliste[EINDEUTIG]),Kursliste[EINDEUTIG],0),2),0)","v":0},{"$f":"IFERROR(INDEX(Kursliste[],MATCH(SUMPRODUCT((Kursliste[TAG]=Kursplan[[#Headers],[FREITAG]])*(ROUNDDOWN($B6,10)>=ROUNDDOWN(Kursliste[ANFANGSZEIT],10))*($B6<=Kursliste[ENDZEIT]),Kursliste[EINDEUTIG]),Kursliste[EINDEUTIG],0),2),0)","v":"MTH-113"},{"$f":"IFERROR(INDEX(Kursliste[],MATCH(SUMPRODUCT((Kursliste[TAG]=Kursplan[[#Headers],[SAMSTAG]])*(ROUNDDOWN($B6,10)>=ROUNDDOWN(Kursliste[ANFANGSZEIT],10))*($B6<=Kursliste[ENDZEIT]),Kursliste[EINDEUTIG]),Kursliste[EINDEUTIG],0),2),0)","v":0}]
[null,"08:45:00",{"$f":"IFERROR(INDEX(Kursliste[],MATCH(SUMPRODUCT((Kursliste[TAG]=Kursplan[[#Headers],[SONNTAG]])*(ROUNDDOWN($B7,10)>=ROUNDDOWN(Kursliste[ANFANGSZEIT],10))*($B7<=Kursliste[ENDZEIT]),Kursliste[EINDEUTIG]),Kursliste[EINDEUTIG],0),2),0)","v":0},{"$f":"IFERROR(INDEX(Kursliste[],MATCH(SUMPRODUCT((Kursliste[TAG]=Kursplan[[#Headers],[MONTAG]])*(ROUNDDOWN($B7,10)>=ROUNDDOWN(Kursliste[ANFANGSZEIT],10))*($B7<=Kursliste[ENDZEIT]),Kursliste[EINDEUTIG]),Kursliste[EINDEUTIG],0),2),0)","v":"MTH-113"},{"$f":"IFERROR(INDEX(Kursliste[],MATCH(SUMPRODUCT((Kursliste[TAG]=Kursplan[[#Headers],[DIENSTAG]])*(ROUNDDOWN($B7,10)>=ROUNDDOWN(Kursliste[ANFANGSZEIT],10))*($B7<=Kursliste[ENDZEIT]),Kursliste[EINDEUTIG]),Kursliste[EINDEUTIG],0),2),0)","v":0},{"$f":"IFERROR(INDEX(Kursliste[],MATCH(SUMPRODUCT((Kursliste[TAG]=Kursplan[[#Headers],[MITTWOCH]])*(ROUNDDOWN($B7,10)>=ROUNDDOWN(Kursliste[ANFANGSZEIT],10))*($B7<=Kursliste[ENDZEIT]),Kursliste[EINDEUTIG]),Kursliste[EINDEUTIG],0),2),0)","v":"MTH-113"},{"$f":"IFERROR(INDEX(Kursliste[],MATCH(SUMPRODUCT((Kursliste[TAG]=Kursplan[[#Headers],[DONNERSTAG]])*(ROUNDDOWN($B7,10)>=ROUNDDOWN(Kursliste[ANFANGSZEIT],10))*($B7<=Kursliste[ENDZEIT]),Kursliste[EINDEUTIG]),Kursliste[EINDEUTIG],0),2),0)","v":0},{"$f":"IFERROR(INDEX(Kursliste[],MATCH(SUMPRODUCT((Kursliste[TAG]=Kursplan[[#Headers],[FREITAG]])*(ROUNDDOWN($B7,10)>=ROUNDDOWN(Kursliste[ANFANGSZEIT],10))*($B7<=Kursliste[ENDZEIT]),Kursliste[EINDEUTIG]),Kursliste[EINDEUTIG],0),2),0)","v":"MTH-113"},{"$f":"IFERROR(INDEX(Kursliste[],MATCH(SUMPRODUCT((Kursliste[TAG]=Kursplan[[#Headers],[SAMSTAG]])*(ROUNDDOWN($B7,10)>=ROUNDDOWN(Kursliste[ANFANGSZEIT],10))*($B7<=Kursliste[ENDZEIT]),Kursliste[EINDEUTIG]),Kursliste[EINDEUTIG],0),2),0)","v":0}]
[null,"09:00:00",{"$f":"IFERROR(INDEX(Kursliste[],MATCH(SUMPRODUCT((Kursliste[TAG]=Kursplan[[#Headers],[SONNTAG]])*(ROUNDDOWN($B8,10)>=ROUNDDOWN(Kursliste[ANFANGSZEIT],10))*($B8<=Kursliste[ENDZEIT]),Kursliste[EINDEUTIG]),Kursliste[EINDEUTIG],0),2),0)","v":0},{"$f":"IFERROR(INDEX(Kursliste[],MATCH(SUMPRODUCT((Kursliste[TAG]=Kursplan[[#Headers],[MONTAG]])*(ROUNDDOWN($B8,10)>=ROUNDDOWN(Kursliste[ANFANGSZEIT],10))*($B8<=Kursliste[ENDZEIT]),Kursliste[EINDEUTIG]),Kursliste[EINDEUTIG],0),2),0)","v":"MTH-113"},{"$f":"IFERROR(INDEX(Kursliste[],MATCH(SUMPRODUCT((Kursliste[TAG]=Kursplan[[#Headers],[DIENSTAG]])*(ROUNDDOWN($B8,10)>=ROUNDDOWN(Kursliste[ANFANGSZEIT],10))*($B8<=Kursliste[ENDZEIT]),Kursliste[EINDEUTIG]),Kursliste[EINDEUTIG],0),2),0)","v":0},{"$f":"IFERROR(INDEX(Kursliste[],MATCH(SUMPRODUCT((Kursliste[TAG]=Kursplan[[#Headers],[MITTWOCH]])*(ROUNDDOWN($B8,10)>=ROUNDDOWN(Kursliste[ANFANGSZEIT],10))*($B8<=Kursliste[ENDZEIT]),Kursliste[EINDEUTIG]),Kursliste[EINDEUTIG],0),2),0)","v":"MTH-113"},{"$f":"IFERROR(INDEX(Kursliste[],MATCH(SUMPRODUCT((Kursliste[TAG]=Kursplan[[#Headers],[DONNERSTAG]])*(ROUNDDOWN($B8,10)>=ROUNDDOWN(Kursliste[ANFANGSZEIT],10))*($B8<=Kursliste[ENDZEIT]),Kursliste[EINDEUTIG]),Kursliste[EINDEUTIG],0),2),0)","v":0},{"$f":"IFERROR(INDEX(Kursliste[],MATCH(SUMPRODUCT((Kursliste[TAG]=Kursplan[[#Headers],[FREITAG]])*(ROUNDDOWN($B8,10)>=ROUNDDOWN(Kursliste[ANFANGSZEIT],10))*($B8<=Kursliste[ENDZEIT]),Kursliste[EINDEUTIG]),Kursliste[EINDEUTIG],0),2),0)","v":"MTH-113"},{"$f":"IFERROR(INDEX(Kursliste[],MATCH(SUMPRODUCT((Kursliste[TAG]=Kursplan[[#Headers],[SAMSTAG]])*(ROUNDDOWN($B8,10)>=ROUNDDOWN(Kursliste[ANFANGSZEIT],10))*($B8<=Kursliste[ENDZEIT]),Kursliste[EINDEUTIG]),Kursliste[EINDEUTIG],0),2),0)","v":0}]
[null,"09:15:00",{"$f":"IFERROR(INDEX(Kursliste[],MATCH(SUMPRODUCT((Kursliste[TAG]=Kursplan[[#Headers],[SONNTAG]])*(ROUNDDOWN($B9,10)>=ROUNDDOWN(Kursliste[ANFANGSZEIT],10))*($B9<=Kursliste[ENDZEIT]),Kursliste[EINDEUTIG]),Kursliste[EINDEUTIG],0),2),0)","v":0},{"$f":"IFERROR(INDEX(Kursliste[],MATCH(SUMPRODUCT((Kursliste[TAG]=Kursplan[[#Headers],[MONTAG]])*(ROUNDDOWN($B9,10)>=ROUNDDOWN(Kursliste[ANFANGSZEIT],10))*($B9<=Kursliste[ENDZEIT]),Kursliste[EINDEUTIG]),Kursliste[EINDEUTIG],0),2),0)","v":"MTH-113"},{"$f":"IFERROR(INDEX(Kursliste[],MATCH(SUMPRODUCT((Kursliste[TAG]=Kursplan[[#Headers],[DIENSTAG]])*(ROUNDDOWN($B9,10)>=ROUNDDOWN(Kursliste[ANFANGSZEIT],10))*($B9<=Kursliste[ENDZEIT]),Kursliste[EINDEUTIG]),Kursliste[EINDEUTIG],0),2),0)","v":0},{"$f":"IFERROR(INDEX(Kursliste[],MATCH(SUMPRODUCT((Kursliste[TAG]=Kursplan[[#Headers],[MITTWOCH]])*(ROUNDDOWN($B9,10)>=ROUNDDOWN(Kursliste[ANFANGSZEIT],10))*($B9<=Kursliste[ENDZEIT]),Kursliste[EINDEUTIG]),Kursliste[EINDEUTIG],0),2),0)","v":"MTH-113"},{"$f":"IFERROR(INDEX(Kursliste[],MATCH(SUMPRODUCT((Kursliste[TAG]=Kursplan[[#Headers],[DONNERSTAG]])*(ROUNDDOWN($B9,10)>=ROUNDDOWN(Kursliste[ANFANGSZEIT],10))*($B9<=Kursliste[ENDZEIT]),Kursliste[EINDEUTIG]),Kursliste[EINDEUTIG],0),2),0)","v":0},{"$f":"IFERROR(INDEX(Kursliste[],MATCH(SUMPRODUCT((Kursliste[TAG]=Kursplan[[#Headers],[FREITAG]])*(ROUNDDOWN($B9,10)>=ROUNDDOWN(Kursliste[ANFANGSZEIT],10))*($B9<=Kursliste[ENDZEIT]),Kursliste[EINDEUTIG]),Kursliste[EINDEUTIG],0),2),0)","v":"MTH-113"},{"$f":"IFERROR(INDEX(Kursliste[],MATCH(SUMPRODUCT((Kursliste[TAG]=Kursplan[[#Headers],[SAMSTAG]])*(ROUNDDOWN($B9,10)>=ROUNDDOWN(Kursliste[ANFANGSZEIT],10))*($B9<=Kursliste[ENDZEIT]),Kursliste[EINDEUTIG]),Kursliste[EINDEUTIG],0),2),0)","v":0}]
[null,"09:30:00",{"$f":"IFERROR(INDEX(Kursliste[],MATCH(SUMPRODUCT((Kursliste[TAG]=Kursplan[[#Headers],[SONNTAG]])*(ROUNDDOWN($B10,10)>=ROUNDDOWN(Kursliste[ANFANGSZEIT],10))*($B10<=Kursliste[ENDZEIT]),Kursliste[EINDEUTIG]),Kursliste[EINDEUTIG],0),2),0)","v":0},{"$f":"IFERROR(INDEX(Kursliste[],MATCH(SUMPRODUCT((Kursliste[TAG]=Kursplan[[#Headers],[MONTAG]])*(ROUNDDOWN($B10,10)>=ROUNDDOWN(Kursliste[ANFANGSZEIT],10))*($B10<=Kursliste[ENDZEIT]),Kursliste[EINDEUTIG]),Kursliste[EINDEUTIG],0),2),0)","v":0},{"$f":"IFERROR(INDEX(Kursliste[],MATCH(SUMPRODUCT((Kursliste[TAG]=Kursplan[[#Headers],[DIENSTAG]])*(ROUNDDOWN($B10,10)>=ROUNDDOWN(Kursliste[ANFANGSZEIT],10))*($B10<=Kursliste[ENDZEIT]),Kursliste[EINDEUTIG]),Kursliste[EINDEUTIG],0),2),0)","v":0},{"$f":"IFERROR(INDEX(Kursliste[],MATCH(SUMPRODUCT((Kursliste[TAG]=Kursplan[[#Headers],[MITTWOCH]])*(ROUNDDOWN($B10,10)>=ROUNDDOWN(Kursliste[ANFANGSZEIT],10))*($B10<=Kursliste[ENDZEIT]),Kursliste[EINDEUTIG]),Kursliste[EINDEUTIG],0),2),0)","v":0},{"$f":"IFERROR(INDEX(Kursliste[],MATCH(SUMPRODUCT((Kursliste[TAG]=Kursplan[[#Headers],[DONNERSTAG]])*(ROUNDDOWN($B10,10)>=ROUNDDOWN(Kursliste[ANFANGSZEIT],10))*($B10<=Kursliste[ENDZEIT]),Kursliste[EINDEUTIG]),Kursliste[EINDEUTIG],0),2),0)","v":0},{"$f":"IFERROR(INDEX(Kursliste[],MATCH(SUMPRODUCT((Kursliste[TAG]=Kursplan[[#Headers],[FREITAG]])*(ROUNDDOWN($B10,10)>=ROUNDDOWN(Kursliste[ANFANGSZEIT],10))*($B10<=Kursliste[ENDZEIT]),Kursliste[EINDEUTIG]),Kursliste[EINDEUTIG],0),2),0)","v":0},{"$f":"IFERROR(INDEX(Kursliste[],MATCH(SUMPRODUCT((Kursliste[TAG]=Kursplan[[#Headers],[SAMSTAG]])*(ROUNDDOWN($B10,10)>=ROUNDDOWN(Kursliste[ANFANGSZEIT],10))*($B10<=Kursliste[ENDZEIT]),Kursliste[EINDEUTIG]),Kursliste[EINDEUTIG],0),2),0)","v":0}]
[null,"09:45:00",{"$f":"IFERROR(INDEX(Kursliste[],MATCH(SUMPRODUCT((Kursliste[TAG]=Kursplan[[#Headers],[SONNTAG]])*(ROUNDDOWN($B11,10)>=ROUNDDOWN(Kursliste[ANFANGSZEIT],10))*($B11<=Kursliste[ENDZEIT]),Kursliste[EINDEUTIG]),Kursliste[EINDEUTIG],0),2),0)","v":0},{"$f":"IFERROR(INDEX(Kursliste[],MATCH(SUMPRODUCT((Kursliste[TAG]=Kursplan[[#Headers],[MONTAG]])*(ROUNDDOWN($B11,10)>=ROUNDDOWN(Kursliste[ANFANGSZEIT],10))*($B11<=Kursliste[ENDZEIT]),Kursliste[EINDEUTIG]),Kursliste[EINDEUTIG],0),2),0)","v":0},{"$f":"IFERROR(INDEX(Kursliste[],MATCH(SUMPRODUCT((Kursliste[TAG]=Kursplan[[#Headers],[DIENSTAG]])*(ROUNDDOWN($B11,10)>=ROUNDDOWN(Kursliste[ANFANGSZEIT],10))*($B11<=Kursliste[ENDZEIT]),Kursliste[EINDEUTIG]),Kursliste[EINDEUTIG],0),2),0)","v":0},{"$f":"IFERROR(INDEX(Kursliste[],MATCH(SUMPRODUCT((Kursliste[TAG]=Kursplan[[#Headers],[MITTWOCH]])*(ROUNDDOWN($B11,10)>=ROUNDDOWN(Kursliste[ANFANGSZEIT],10))*($B11<=Kursliste[ENDZEIT]),Kursliste[EINDEUTIG]),Kursliste[EINDEUTIG],0),2),0)","v":0},{"$f":"IFERROR(INDEX(Kursliste[],MATCH(SUMPRODUCT((Kursliste[TAG]=Kursplan[[#Headers],[DONNERSTAG]])*(ROUNDDOWN($B11,10)>=ROUNDDOWN(Kursliste[ANFANGSZEIT],10))*($B11<=Kursliste[ENDZEIT]),Kursliste[EINDEUTIG]),Kursliste[EINDEUTIG],0),2),0)","v":0},{"$f":"IFERROR(INDEX(Kursliste[],MATCH(SUMPRODUCT((Kursliste[TAG]=Kursplan[[#Headers],[FREITAG]])*(ROUNDDOWN($B11,10)>=ROUNDDOWN(Kursliste[ANFANGSZEIT],10))*($B11<=Kursliste[ENDZEIT]),Kursliste[EINDEUTIG]),Kursliste[EINDEUTIG],0),2),0)","v":0},{"$f":"IFERROR(INDEX(Kursliste[],MATCH(SUMPRODUCT((Kursliste[TAG]=Kursplan[[#Headers],[SAMSTAG]])*(ROUNDDOWN($B11,10)>=ROUNDDOWN(Kursliste[ANFANGSZEIT],10))*($B11<=Kursliste[ENDZEIT]),Kursliste[EINDEUTIG]),Kursliste[EINDEUTIG],0),2),0)","v":0}]
[null,"10:00:00",{"$f":"IFERROR(INDEX(Kursliste[],MATCH(SUMPRODUCT((Kursliste[TAG]=Kursplan[[#Headers],[SONNTAG]])*(ROUNDDOWN($B12,10)>=ROUNDDOWN(Kursliste[ANFANGSZEIT],10))*($B12<=Kursliste[ENDZEIT]),Kursliste[EINDEUTIG]),Kursliste[EINDEUTIG],0),2),0)","v":0},{"$f":"IFERROR(INDEX(Kursliste[],MATCH(SUMPRODUCT((Kursliste[TAG]=Kursplan[[#Headers],[MONTAG]])*(ROUNDDOWN($B12,10)>=ROUNDDOWN(Kursliste[ANFANGSZEIT],10))*($B12<=Kursliste[ENDZEIT]),Kursliste[EINDEUTIG]),Kursliste[EINDEUTIG],0),2),0)","v":0},{"$f":"IFERROR(INDEX(Kursliste[],MATCH(SUMPRODUCT((Kursliste[TAG]=Kursplan[[#Headers],[DIENSTAG]])*(ROUNDDOWN($B12,10)>=ROUNDDOWN(Kursliste[ANFANGSZEIT],10))*($B12<=Kursliste[ENDZEIT]),Kursliste[EINDEUTIG]),Kursliste[EINDEUTIG],0),2),0)","v":0},{"$f":"IFERROR(INDEX(Kursliste[],MATCH(SUMPRODUCT((Kursliste[TAG]=Kursplan[[#Headers],[MITTWOCH]])*(ROUNDDOWN($B12,10)>=ROUNDDOWN(Kursliste[ANFANGSZEIT],10))*($B12<=Kursliste[ENDZEIT]),Kursliste[EINDEUTIG]),Kursliste[EINDEUTIG],0),2),0)","v":0},{"$f":"IFERROR(INDEX(Kursliste[],MATCH(SUMPRODUCT((Kursliste[TAG]=Kursplan[[#Headers],[DONNERSTAG]])*(ROUNDDOWN($B12,10)>=ROUNDDOWN(Kursliste[ANFANGSZEIT],10))*($B12<=Kursliste[ENDZEIT]),Kursliste[EINDEUTIG]),Kursliste[EINDEUTIG],0),2),0)","v":0},{"$f":"IFERROR(INDEX(Kursliste[],MATCH(SUMPRODUCT((Kursliste[TAG]=Kursplan[[#Headers],[FREITAG]])*(ROUNDDOWN($B12,10)>=ROUNDDOWN(Kursliste[ANFANGSZEIT],10))*($B12<=Kursliste[ENDZEIT]),Kursliste[EINDEUTIG]),Kursliste[EINDEUTIG],0),2),0)","v":0},{"$f":"IFERROR(INDEX(Kursliste[],MATCH(SUMPRODUCT((Kursliste[TAG]=Kursplan[[#Headers],[SAMSTAG]])*(ROUNDDOWN($B12,10)>=ROUNDDOWN(Kursliste[ANFANGSZEIT],10))*($B12<=Kursliste[ENDZEIT]),Kursliste[EINDEUTIG]),Kursliste[EINDEUTIG],0),2),0)","v":0}]
[null,"10:15:00",{"$f":"IFERROR(INDEX(Kursliste[],MATCH(SUMPRODUCT((Kursliste[TAG]=Kursplan[[#Headers],[SONNTAG]])*(ROUNDDOWN($B13,10)>=ROUNDDOWN(Kursliste[ANFANGSZEIT],10))*($B13<=Kursliste[ENDZEIT]),Kursliste[EINDEUTIG]),Kursliste[EINDEUTIG],0),2),0)","v":0},{"$f":"IFERROR(INDEX(Kursliste[],MATCH(SUMPRODUCT((Kursliste[TAG]=Kursplan[[#Headers],[MONTAG]])*(ROUNDDOWN($B13,10)>=ROUNDDOWN(Kursliste[ANFANGSZEIT],10))*($B13<=Kursliste[ENDZEIT]),Kursliste[EINDEUTIG]),Kursliste[EINDEUTIG],0),2),0)","v":0},{"$f":"IFERROR(INDEX(Kursliste[],MATCH(SUMPRODUCT((Kursliste[TAG]=Kursplan[[#Headers],[DIENSTAG]])*(ROUNDDOWN($B13,10)>=ROUNDDOWN(Kursliste[ANFANGSZEIT],10))*($B13<=Kursliste[ENDZEIT]),Kursliste[EINDEUTIG]),Kursliste[EINDEUTIG],0),2),0)","v":0},{"$f":"IFERROR(INDEX(Kursliste[],MATCH(SUMPRODUCT((Kursliste[TAG]=Kursplan[[#Headers],[MITTWOCH]])*(ROUNDDOWN($B13,10)>=ROUNDDOWN(Kursliste[ANFANGSZEIT],10))*($B13<=Kursliste[ENDZEIT]),Kursliste[EINDEUTIG]),Kursliste[EINDEUTIG],0),2),0)","v":0},{"$f":"IFERROR(INDEX(Kursliste[],MATCH(SUMPRODUCT((Kursliste[TAG]=Kursplan[[#Headers],[DONNERSTAG]])*(ROUNDDOWN($B13,10)>=ROUNDDOWN(Kursliste[ANFANGSZEIT],10))*($B13<=Kursliste[ENDZEIT]),Kursliste[EINDEUTIG]),Kursliste[EINDEUTIG],0),2),0)","v":0},{"$f":"IFERROR(INDEX(Kursliste[],MATCH(SUMPRODUCT((Kursliste[TAG]=Kursplan[[#Headers],[FREITAG]])*(ROUNDDOWN($B13,10)>=ROUNDDOWN(Kursliste[ANFANGSZEIT],10))*($B13<=Kursliste[ENDZEIT]),Kursliste[EINDEUTIG]),Kursliste[EINDEUTIG],0),2),0)","v":0},{"$f":"IFERROR(INDEX(Kursliste[],MATCH(SUMPRODUCT((Kursliste[TAG]=Kursplan[[#Headers],[SAMSTAG]])*(ROUNDDOWN($B13,10)>=ROUNDDOWN(Kursliste[ANFANGSZEIT],10))*($B13<=Kursliste[ENDZEIT]),Kursliste[EINDEUTIG]),Kursliste[EINDEUTIG],0),2),0)","v":0}]
[null,"10:30:00",{"$f":"IFERROR(INDEX(Kursliste[],MATCH(SUMPRODUCT((Kursliste[TAG]=Kursplan[[#Headers],[SONNTAG]])*(ROUNDDOWN($B14,10)>=ROUNDDOWN(Kursliste[ANFANGSZEIT],10))*($B14<=Kursliste[ENDZEIT]),Kursliste[EINDEUTIG]),Kursliste[EINDEUTIG],0),2),0)","v":0},{"$f":"IFERROR(INDEX(Kursliste[],MATCH(SUMPRODUCT((Kursliste[TAG]=Kursplan[[#Headers],[MONTAG]])*(ROUNDDOWN($B14,10)>=ROUNDDOWN(Kursliste[ANFANGSZEIT],10))*($B14<=Kursliste[ENDZEIT]),Kursliste[EINDEUTIG]),Kursliste[EINDEUTIG],0),2),0)","v":0},{"$f":"IFERROR(INDEX(Kursliste[],MATCH(SUMPRODUCT((Kursliste[TAG]=Kursplan[[#Headers],[DIENSTAG]])*(ROUNDDOWN($B14,10)>=ROUNDDOWN(Kursliste[ANFANGSZEIT],10))*($B14<=Kursliste[ENDZEIT]),Kursliste[EINDEUTIG]),Kursliste[EINDEUTIG],0),2),0)","v":0},{"$f":"IFERROR(INDEX(Kursliste[],MATCH(SUMPRODUCT((Kursliste[TAG]=Kursplan[[#Headers],[MITTWOCH]])*(ROUNDDOWN($B14,10)>=ROUNDDOWN(Kursliste[ANFANGSZEIT],10))*($B14<=Kursliste[ENDZEIT]),Kursliste[EINDEUTIG]),Kursliste[EINDEUTIG],0),2),0)","v":0},{"$f":"IFERROR(INDEX(Kursliste[],MATCH(SUMPRODUCT((Kursliste[TAG]=Kursplan[[#Headers],[DONNERSTAG]])*(ROUNDDOWN($B14,10)>=ROUNDDOWN(Kursliste[ANFANGSZEIT],10))*($B14<=Kursliste[ENDZEIT]),Kursliste[EINDEUTIG]),Kursliste[EINDEUTIG],0),2),0)","v":0},{"$f":"IFERROR(INDEX(Kursliste[],MATCH(SUMPRODUCT((Kursliste[TAG]=Kursplan[[#Headers],[FREITAG]])*(ROUNDDOWN($B14,10)>=ROUNDDOWN(Kursliste[ANFANGSZEIT],10))*($B14<=Kursliste[ENDZEIT]),Kursliste[EINDEUTIG]),Kursliste[EINDEUTIG],0),2),0)","v":0},{"$f":"IFERROR(INDEX(Kursliste[],MATCH(SUMPRODUCT((Kursliste[TAG]=Kursplan[[#Headers],[SAMSTAG]])*(ROUNDDOWN($B14,10)>=ROUNDDOWN(Kursliste[ANFANGSZEIT],10))*($B14<=Kursliste[ENDZEIT]),Kursliste[EINDEUTIG]),Kursliste[EINDEUTIG],0),2),0)","v":0}]
[null,"10:45:00",{"$f":"IFERROR(INDEX(Kursliste[],MATCH(SUMPRODUCT((Kursliste[TAG]=Kursplan[[#Headers],[SONNTAG]])*(ROUNDDOWN($B15,10)>=ROUNDDOWN(Kursliste[ANFANGSZEIT],10))*($B15<=Kursliste[ENDZEIT]),Kursliste[EINDEUTIG]),Kursliste[EINDEUTIG],0),2),0)","v":0},{"$f":"IFERROR(INDEX(Kursliste[],MATCH(SUMPRODUCT((Kursliste[TAG]=Kursplan[[#Headers],[MONTAG]])*(ROUNDDOWN($B15,10)>=ROUNDDOWN(Kursliste[ANFANGSZEIT],10))*($B15<=Kursliste[ENDZEIT]),Kursliste[EINDEUTIG]),Kursliste[EINDEUTIG],0),2),0)","v":0},{"$f":"IFERROR(INDEX(Kursliste[],MATCH(SUMPRODUCT((Kursliste[TAG]=Kursplan[[#Headers],[DIENSTAG]])*(ROUNDDOWN($B15,10)>=ROUNDDOWN(Kursliste[ANFANGSZEIT],10))*($B15<=Kursliste[ENDZEIT]),Kursliste[EINDEUTIG]),Kursliste[EINDEUTIG],0),2),0)","v":0},{"$f":"IFERROR(INDEX(Kursliste[],MATCH(SUMPRODUCT((Kursliste[TAG]=Kursplan[[#Headers],[MITTWOCH]])*(ROUNDDOWN($B15,10)>=ROUNDDOWN(Kursliste[ANFANGSZEIT],10))*($B15<=Kursliste[ENDZEIT]),Kursliste[EINDEUTIG]),Kursliste[EINDEUTIG],0),2),0)","v":0},{"$f":"IFERROR(INDEX(Kursliste[],MATCH(SUMPRODUCT((Kursliste[TAG]=Kursplan[[#Headers],[DONNERSTAG]])*(ROUNDDOWN($B15,10)>=ROUNDDOWN(Kursliste[ANFANGSZEIT],10))*($B15<=Kursliste[ENDZEIT]),Kursliste[EINDEUTIG]),Kursliste[EINDEUTIG],0),2),0)","v":0},{"$f":"IFERROR(INDEX(Kursliste[],MATCH(SUMPRODUCT((Kursliste[TAG]=Kursplan[[#Headers],[FREITAG]])*(ROUNDDOWN($B15,10)>=ROUNDDOWN(Kursliste[ANFANGSZEIT],10))*($B15<=Kursliste[ENDZEIT]),Kursliste[EINDEUTIG]),Kursliste[EINDEUTIG],0),2),0)","v":0},{"$f":"IFERROR(INDEX(Kursliste[],MATCH(SUMPRODUCT((Kursliste[TAG]=Kursplan[[#Headers],[SAMSTAG]])*(ROUNDDOWN($B15,10)>=ROUNDDOWN(Kursliste[ANFANGSZEIT],10))*($B15<=Kursliste[ENDZEIT]),Kursliste[EINDEUTIG]),Kursliste[EINDEUTIG],0),2),0)","v":0}]
[null,"11:00:00",{"$f":"IFERROR(INDEX(Kursliste[],MATCH(SUMPRODUCT((Kursliste[TAG]=Kursplan[[#Headers],[SONNTAG]])*(ROUNDDOWN($B16,10)>=ROUNDDOWN(Kursliste[ANFANGSZEIT],10))*($B16<=Kursliste[ENDZEIT]),Kursliste[EINDEUTIG]),Kursliste[EINDEUTIG],0),2),0)","v":0},{"$f":"IFERROR(INDEX(Kursliste[],MATCH(SUMPRODUCT((Kursliste[TAG]=Kursplan[[#Headers],[MONTAG]])*(ROUNDDOWN($B16,10)>=ROUNDDOWN(Kursliste[ANFANGSZEIT],10))*($B16<=Kursliste[ENDZEIT]),Kursliste[EINDEUTIG]),Kursliste[EINDEUTIG],0),2),0)","v":0},{"$f":"IFERROR(INDEX(Kursliste[],MATCH(SUMPRODUCT((Kursliste[TAG]=Kursplan[[#Headers],[DIENSTAG]])*(ROUNDDOWN($B16,10)>=ROUNDDOWN(Kursliste[ANFANGSZEIT],10))*($B16<=Kursliste[ENDZEIT]),Kursliste[EINDEUTIG]),Kursliste[EINDEUTIG],0),2),0)","v":"HPE 295"},{"$f":"IFERROR(INDEX(Kursliste[],MATCH(SUMPRODUCT((Kursliste[TAG]=Kursplan[[#Headers],[MITTWOCH]])*(ROUNDDOWN($B16,10)>=ROUNDDOWN(Kursliste[ANFANGSZEIT],10))*($B16<=Kursliste[ENDZEIT]),Kursliste[EINDEUTIG]),Kursliste[EINDEUTIG],0),2),0)","v":0},{"$f":"IFERROR(INDEX(Kursliste[],MATCH(SUMPRODUCT((Kursliste[TAG]=Kursplan[[#Headers],[DONNERSTAG]])*(ROUNDDOWN($B16,10)>=ROUNDDOWN(Kursliste[ANFANGSZEIT],10))*($B16<=Kursliste[ENDZEIT]),Kursliste[EINDEUTIG]),Kursliste[EINDEUTIG],0),2),0)","v":"HPE 295"},{"$f":"IFERROR(INDEX(Kursliste[],MATCH(SUMPRODUCT((Kursliste[TAG]=Kursplan[[#Headers],[FREITAG]])*(ROUNDDOWN($B16,10)>=ROUNDDOWN(Kursliste[ANFANGSZEIT],10))*($B16<=Kursliste[ENDZEIT]),Kursliste[EINDEUTIG]),Kursliste[EINDEUTIG],0),2),0)","v":0},{"$f":"IFERROR(INDEX(Kursliste[],MATCH(SUMPRODUCT((Kursliste[TAG]=Kursplan[[#Headers],[SAMSTAG]])*(ROUNDDOWN($B16,10)>=ROUNDDOWN(Kursliste[ANFANGSZEIT],10))*($B16<=Kursliste[ENDZEIT]),Kursliste[EINDEUTIG]),Kursliste[EINDEUTIG],0),2),0)","v":0}]
[null,"11:15:00",{"$f":"IFERROR(INDEX(Kursliste[],MATCH(SUMPRODUCT((Kursliste[TAG]=Kursplan[[#Headers],[SONNTAG]])*(ROUNDDOWN($B17,10)>=ROUNDDOWN(Kursliste[ANFANGSZEIT],10))*($B17<=Kursliste[ENDZEIT]),Kursliste[EINDEUTIG]),Kursliste[EINDEUTIG],0),2),0)","v":0},{"$f":"IFERROR(INDEX(Kursliste[],MATCH(SUMPRODUCT((Kursliste[TAG]=Kursplan[[#Headers],[MONTAG]])*(ROUNDDOWN($B17,10)>=ROUNDDOWN(Kursliste[ANFANGSZEIT],10))*($B17<=Kursliste[ENDZEIT]),Kursliste[EINDEUTIG]),Kursliste[EINDEUTIG],0),2),0)","v":0},{"$f":"IFERROR(INDEX(Kursliste[],MATCH(SUMPRODUCT((Kursliste[TAG]=Kursplan[[#Headers],[DIENSTAG]])*(ROUNDDOWN($B17,10)>=ROUNDDOWN(Kursliste[ANFANGSZEIT],10))*($B17<=Kursliste[ENDZEIT]),Kursliste[EINDEUTIG]),Kursliste[EINDEUTIG],0),2),0)","v":"HPE 295"},{"$f":"IFERROR(INDEX(Kursliste[],MATCH(SUMPRODUCT((Kursliste[TAG]=Kursplan[[#Headers],[MITTWOCH]])*(ROUNDDOWN($B17,10)>=ROUNDDOWN(Kursliste[ANFANGSZEIT],10))*($B17<=Kursliste[ENDZEIT]),Kursliste[EINDEUTIG]),Kursliste[EINDEUTIG],0),2),0)","v":0},{"$f":"IFERROR(INDEX(Kursliste[],MATCH(SUMPRODUCT((Kursliste[TAG]=Kursplan[[#Headers],[DONNERSTAG]])*(ROUNDDOWN($B17,10)>=ROUNDDOWN(Kursliste[ANFANGSZEIT],10))*($B17<=Kursliste[ENDZEIT]),Kursliste[EINDEUTIG]),Kursliste[EINDEUTIG],0),2),0)","v":"HPE 295"},{"$f":"IFERROR(INDEX(Kursliste[],MATCH(SUMPRODUCT((Kursliste[TAG]=Kursplan[[#Headers],[FREITAG]])*(ROUNDDOWN($B17,10)>=ROUNDDOWN(Kursliste[ANFANGSZEIT],10))*($B17<=Kursliste[ENDZEIT]),Kursliste[EINDEUTIG]),Kursliste[EINDEUTIG],0),2),0)","v":0},{"$f":"IFERROR(INDEX(Kursliste[],MATCH(SUMPRODUCT((Kursliste[TAG]=Kursplan[[#Headers],[SAMSTAG]])*(ROUNDDOWN($B17,10)>=ROUNDDOWN(Kursliste[ANFANGSZEIT],10))*($B17<=Kursliste[ENDZEIT]),Kursliste[EINDEUTIG]),Kursliste[EINDEUTIG],0),2),0)","v":0}]
[null,"11:30:00",{"$f":"IFERROR(INDEX(Kursliste[],MATCH(SUMPRODUCT((Kursliste[TAG]=Kursplan[[#Headers],[SONNTAG]])*(ROUNDDOWN($B18,10)>=ROUNDDOWN(Kursliste[ANFANGSZEIT],10))*($B18<=Kursliste[ENDZEIT]),Kursliste[EINDEUTIG]),Kursliste[EINDEUTIG],0),2),0)","v":0},{"$f":"IFERROR(INDEX(Kursliste[],MATCH(SUMPRODUCT((Kursliste[TAG]=Kursplan[[#Headers],[MONTAG]])*(ROUNDDOWN($B18,10)>=ROUNDDOWN(Kursliste[ANFANGSZEIT],10))*($B18<=Kursliste[ENDZEIT]),Kursliste[EINDEUTIG]),Kursliste[EINDEUTIG],0),2),0)","v":0},{"$f":"IFERROR(INDEX(Kursliste[],MATCH(SUMPRODUCT((Kursliste[TAG]=Kursplan[[#Headers],[DIENSTAG]])*(ROUNDDOWN($B18,10)>=ROUNDDOWN(Kursliste[ANFANGSZEIT],10))*($B18<=Kursliste[ENDZEIT]),Kursliste[EINDEUTIG]),Kursliste[EINDEUTIG],0),2),0)","v":"HPE 295"},{"$f":"IFERROR(INDEX(Kursliste[],MATCH(SUMPRODUCT((Kursliste[TAG]=Kursplan[[#Headers],[MITTWOCH]])*(ROUNDDOWN($B18,10)>=ROUNDDOWN(Kursliste[ANFANGSZEIT],10))*($B18<=Kursliste[ENDZEIT]),Kursliste[EINDEUTIG]),Kursliste[EINDEUTIG],0),2),0)","v":0},{"$f":"IFERROR(INDEX(Kursliste[],MATCH(SUMPRODUCT((Kursliste[TAG]=Kursplan[[#Headers],[DONNERSTAG]])*(ROUNDDOWN($B18,10)>=ROUNDDOWN(Kursliste[ANFANGSZEIT],10))*($B18<=Kursliste[ENDZEIT]),Kursliste[EINDEUTIG]),Kursliste[EINDEUTIG],0),2),0)","v":"HPE 295"},{"$f":"IFERROR(INDEX(Kursliste[],MATCH(SUMPRODUCT((Kursliste[TAG]=Kursplan[[#Headers],[FREITAG]])*(ROUNDDOWN($B18,10)>=ROUNDDOWN(Kursliste[ANFANGSZEIT],10))*($B18<=Kursliste[ENDZEIT]),Kursliste[EINDEUTIG]),Kursliste[EINDEUTIG],0),2),0)","v":0},{"$f":"IFERROR(INDEX(Kursliste[],MATCH(SUMPRODUCT((Kursliste[TAG]=Kursplan[[#Headers],[SAMSTAG]])*(ROUNDDOWN($B18,10)>=ROUNDDOWN(Kursliste[ANFANGSZEIT],10))*($B18<=Kursliste[ENDZEIT]),Kursliste[EINDEUTIG]),Kursliste[EINDEUTIG],0),2),0)","v":0}]
[null,"11:45:00",{"$f":"IFERROR(INDEX(Kursliste[],MATCH(SUMPRODUCT((Kursliste[TAG]=Kursplan[[#Headers],[SONNTAG]])*(ROUNDDOWN($B19,10)>=ROUNDDOWN(Kursliste[ANFANGSZEIT],10))*($B19<=Kursliste[ENDZEIT]),Kursliste[EINDEUTIG]),Kursliste[EINDEUTIG],0),2),0)","v":0},{"$f":"IFERROR(INDEX(Kursliste[],MATCH(SUMPRODUCT((Kursliste[TAG]=Kursplan[[#Headers],[MONTAG]])*(ROUNDDOWN($B19,10)>=ROUNDDOWN(Kursliste[ANFANGSZEIT],10))*($B19<=Kursliste[ENDZEIT]),Kursliste[EINDEUTIG]),Kursliste[EINDEUTIG],0),2),0)","v":0},{"$f":"IFERROR(INDEX(Kursliste[],MATCH(SUMPRODUCT((Kursliste[TAG]=Kursplan[[#Headers],[DIENSTAG]])*(ROUNDDOWN($B19,10)>=ROUNDDOWN(Kursliste[ANFANGSZEIT],10))*($B19<=Kursliste[ENDZEIT]),Kursliste[EINDEUTIG]),Kursliste[EINDEUTIG],0),2),0)","v":"HPE 295"},{"$f":"IFERROR(INDEX(Kursliste[],MATCH(SUMPRODUCT((Kursliste[TAG]=Kursplan[[#Headers],[MITTWOCH]])*(ROUNDDOWN($B19,10)>=ROUNDDOWN(Kursliste[ANFANGSZEIT],10))*($B19<=Kursliste[ENDZEIT]),Kursliste[EINDEUTIG]),Kursliste[EINDEUTIG],0),2),0)","v":0},{"$f":"IFERROR(INDEX(Kursliste[],MATCH(SUMPRODUCT((Kursliste[TAG]=Kursplan[[#Headers],[DONNERSTAG]])*(ROUNDDOWN($B19,10)>=ROUNDDOWN(Kursliste[ANFANGSZEIT],10))*($B19<=Kursliste[ENDZEIT]),Kursliste[EINDEUTIG]),Kursliste[EINDEUTIG],0),2),0)","v":"HPE 295"},{"$f":"IFERROR(INDEX(Kursliste[],MATCH(SUMPRODUCT((Kursliste[TAG]=Kursplan[[#Headers],[FREITAG]])*(ROUNDDOWN($B19,10)>=ROUNDDOWN(Kursliste[ANFANGSZEIT],10))*($B19<=Kursliste[ENDZEIT]),Kursliste[EINDEUTIG]),Kursliste[EINDEUTIG],0),2),0)","v":0},{"$f":"IFERROR(INDEX(Kursliste[],MATCH(SUMPRODUCT((Kursliste[TAG]=Kursplan[[#Headers],[SAMSTAG]])*(ROUNDDOWN($B19,10)>=ROUNDDOWN(Kursliste[ANFANGSZEIT],10))*($B19<=Kursliste[ENDZEIT]),Kursliste[EINDEUTIG]),Kursliste[EINDEUTIG],0),2),0)","v":0}]
[null,"12:00:00",{"$f":"IFERROR(INDEX(Kursliste[],MATCH(SUMPRODUCT((Kursliste[TAG]=Kursplan[[#Headers],[SONNTAG]])*(ROUNDDOWN($B20,10)>=ROUNDDOWN(Kursliste[ANFANGSZEIT],10))*($B20<=Kursliste[ENDZEIT]),Kursliste[EINDEUTIG]),Kursliste[EINDEUTIG],0),2),0)","v":0},{"$f":"IFERROR(INDEX(Kursliste[],MATCH(SUMPRODUCT((Kursliste[TAG]=Kursplan[[#Headers],[MONTAG]])*(ROUNDDOWN($B20,10)>=ROUNDDOWN(Kursliste[ANFANGSZEIT],10))*($B20<=Kursliste[ENDZEIT]),Kursliste[EINDEUTIG]),Kursliste[EINDEUTIG],0),2),0)","v":0},{"$f":"IFERROR(INDEX(Kursliste[],MATCH(SUMPRODUCT((Kursliste[TAG]=Kursplan[[#Headers],[DIENSTAG]])*(ROUNDDOWN($B20,10)>=ROUNDDOWN(Kursliste[ANFANGSZEIT],10))*($B20<=Kursliste[ENDZEIT]),Kursliste[EINDEUTIG]),Kursliste[EINDEUTIG],0),2),0)","v":"HPE 295"},{"$f":"IFERROR(INDEX(Kursliste[],MATCH(SUMPRODUCT((Kursliste[TAG]=Kursplan[[#Headers],[MITTWOCH]])*(ROUNDDOWN($B20,10)>=ROUNDDOWN(Kursliste[ANFANGSZEIT],10))*($B20<=Kursliste[ENDZEIT]),Kursliste[EINDEUTIG]),Kursliste[EINDEUTIG],0),2),0)","v":0},{"$f":"IFERROR(INDEX(Kursliste[],MATCH(SUMPRODUCT((Kursliste[TAG]=Kursplan[[#Headers],[DONNERSTAG]])*(ROUNDDOWN($B20,10)>=ROUNDDOWN(Kursliste[ANFANGSZEIT],10))*($B20<=Kursliste[ENDZEIT]),Kursliste[EINDEUTIG]),Kursliste[EINDEUTIG],0),2),0)","v":"HPE 295"},{"$f":"IFERROR(INDEX(Kursliste[],MATCH(SUMPRODUCT((Kursliste[TAG]=Kursplan[[#Headers],[FREITAG]])*(ROUNDDOWN($B20,10)>=ROUNDDOWN(Kursliste[ANFANGSZEIT],10))*($B20<=Kursliste[ENDZEIT]),Kursliste[EINDEUTIG]),Kursliste[EINDEUTIG],0),2),0)","v":0},{"$f":"IFERROR(INDEX(Kursliste[],MATCH(SUMPRODUCT((Kursliste[TAG]=Kursplan[[#Headers],[SAMSTAG]])*(ROUNDDOWN($B20,10)>=ROUNDDOWN(Kursliste[ANFANGSZEIT],10))*($B20<=Kursliste[ENDZEIT]),Kursliste[EINDEUTIG]),Kursliste[EINDEUTIG],0),2),0)","v":0}]
[null,"12:15:00",{"$f":"IFERROR(INDEX(Kursliste[],MATCH(SUMPRODUCT((Kursliste[TAG]=Kursplan[[#Headers],[SONNTAG]])*(ROUNDDOWN($B21,10)>=ROUNDDOWN(Kursliste[ANFANGSZEIT],10))*($B21<=Kursliste[ENDZEIT]),Kursliste[EINDEUTIG]),Kursliste[EINDEUTIG],0),2),0)","v":0},{"$f":"IFERROR(INDEX(Kursliste[],MATCH(SUMPRODUCT((Kursliste[TAG]=Kursplan[[#Headers],[MONTAG]])*(ROUNDDOWN($B21,10)>=ROUNDDOWN(Kursliste[ANFANGSZEIT],10))*($B21<=Kursliste[ENDZEIT]),Kursliste[EINDEUTIG]),Kursliste[EINDEUTIG],0),2),0)","v":0},{"$f":"IFERROR(INDEX(Kursliste[],MATCH(SUMPRODUCT((Kursliste[TAG]=Kursplan[[#Headers],[DIENSTAG]])*(ROUNDDOWN($B21,10)>=ROUNDDOWN(Kursliste[ANFANGSZEIT],10))*($B21<=Kursliste[ENDZEIT]),Kursliste[EINDEUTIG]),Kursliste[EINDEUTIG],0),2),0)","v":0},{"$f":"IFERROR(INDEX(Kursliste[],MATCH(SUMPRODUCT((Kursliste[TAG]=Kursplan[[#Headers],[MITTWOCH]])*(ROUNDDOWN($B21,10)>=ROUNDDOWN(Kursliste[ANFANGSZEIT],10))*($B21<=Kursliste[ENDZEIT]),Kursliste[EINDEUTIG]),Kursliste[EINDEUTIG],0),2),0)","v":0},{"$f":"IFERROR(INDEX(Kursliste[],MATCH(SUMPRODUCT((Kursliste[TAG]=Kursplan[[#Headers],[DONNERSTAG]])*(ROUNDDOWN($B21,10)>=ROUNDDOWN(Kursliste[ANFANGSZEIT],10))*($B21<=Kursliste[ENDZEIT]),Kursliste[EINDEUTIG]),Kursliste[EINDEUTIG],0),2),0)","v":0},{"$f":"IFERROR(INDEX(Kursliste[],MATCH(SUMPRODUCT((Kursliste[TAG]=Kursplan[[#Headers],[FREITAG]])*(ROUNDDOWN($B21,10)>=ROUNDDOWN(Kursliste[ANFANGSZEIT],10))*($B21<=Kursliste[ENDZEIT]),Kursliste[EINDEUTIG]),Kursliste[EINDEUTIG],0),2),0)","v":0},{"$f":"IFERROR(INDEX(Kursliste[],MATCH(SUMPRODUCT((Kursliste[TAG]=Kursplan[[#Headers],[SAMSTAG]])*(ROUNDDOWN($B21,10)>=ROUNDDOWN(Kursliste[ANFANGSZEIT],10))*($B21<=Kursliste[ENDZEIT]),Kursliste[EINDEUTIG]),Kursliste[EINDEUTIG],0),2),0)","v":0}]
[null,"12:30:00",{"$f":"IFERROR(INDEX(Kursliste[],MATCH(SUMPRODUCT((Kursliste[TAG]=Kursplan[[#Headers],[SONNTAG]])*(ROUNDDOWN($B22,10)>=ROUNDDOWN(Kursliste[ANFANGSZEIT],10))*($B22<=Kursliste[ENDZEIT]),Kursliste[EINDEUTIG]),Kursliste[EINDEUTIG],0),2),0)","v":0},{"$f":"IFERROR(INDEX(Kursliste[],MATCH(SUMPRODUCT((Kursliste[TAG]=Kursplan[[#Headers],[MONTAG]])*(ROUNDDOWN($B22,10)>=ROUNDDOWN(Kursliste[ANFANGSZEIT],10))*($B22<=Kursliste[ENDZEIT]),Kursliste[EINDEUTIG]),Kursliste[EINDEUTIG],0),2),0)","v":0},{"$f":"IFERROR(INDEX(Kursliste[],MATCH(SUMPRODUCT((Kursliste[TAG]=Kursplan[[#Headers],[DIENSTAG]])*(ROUNDDOWN($B22,10)>=ROUNDDOWN(Kursliste[ANFANGSZEIT],10))*($B22<=Kursliste[ENDZEIT]),Kursliste[EINDEUTIG]),Kursliste[EINDEUTIG],0),2),0)","v":0},{"$f":"IFERROR(INDEX(Kursliste[],MATCH(SUMPRODUCT((Kursliste[TAG]=Kursplan[[#Headers],[MITTWOCH]])*(ROUNDDOWN($B22,10)>=ROUNDDOWN(Kursliste[ANFANGSZEIT],10))*($B22<=Kursliste[ENDZEIT]),Kursliste[EINDEUTIG]),Kursliste[EINDEUTIG],0),2),0)","v":0},{"$f":"IFERROR(INDEX(Kursliste[],MATCH(SUMPRODUCT((Kursliste[TAG]=Kursplan[[#Headers],[DONNERSTAG]])*(ROUNDDOWN($B22,10)>=ROUNDDOWN(Kursliste[ANFANGSZEIT],10))*($B22<=Kursliste[ENDZEIT]),Kursliste[EINDEUTIG]),Kursliste[EINDEUTIG],0),2),0)","v":0},{"$f":"IFERROR(INDEX(Kursliste[],MATCH(SUMPRODUCT((Kursliste[TAG]=Kursplan[[#Headers],[FREITAG]])*(ROUNDDOWN($B22,10)>=ROUNDDOWN(Kursliste[ANFANGSZEIT],10))*($B22<=Kursliste[ENDZEIT]),Kursliste[EINDEUTIG]),Kursliste[EINDEUTIG],0),2),0)","v":0},{"$f":"IFERROR(INDEX(Kursliste[],MATCH(SUMPRODUCT((Kursliste[TAG]=Kursplan[[#Headers],[SAMSTAG]])*(ROUNDDOWN($B22,10)>=ROUNDDOWN(Kursliste[ANFANGSZEIT],10))*($B22<=Kursliste[ENDZEIT]),Kursliste[EINDEUTIG]),Kursliste[EINDEUTIG],0),2),0)","v":0}]
[null,"12:45:00",{"$f":"IFERROR(INDEX(Kursliste[],MATCH(SUMPRODUCT((Kursliste[TAG]=Kursplan[[#Headers],[SONNTAG]])*(ROUNDDOWN($B23,10)>=ROUNDDOWN(Kursliste[ANFANGSZEIT],10))*($B23<=Kursliste[ENDZEIT]),Kursliste[EINDEUTIG]),Kursliste[EINDEUTIG],0),2),0)","v":0},{"$f":"IFERROR(INDEX(Kursliste[],MATCH(SUMPRODUCT((Kursliste[TAG]=Kursplan[[#Headers],[MONTAG]])*(ROUNDDOWN($B23,10)>=ROUNDDOWN(Kursliste[ANFANGSZEIT],10))*($B23<=Kursliste[ENDZEIT]),Kursliste[EINDEUTIG]),Kursliste[EINDEUTIG],0),2),0)","v":0},{"$f":"IFERROR(INDEX(Kursliste[],MATCH(SUMPRODUCT((Kursliste[TAG]=Kursplan[[#Headers],[DIENSTAG]])*(ROUNDDOWN($B23,10)>=ROUNDDOWN(Kursliste[ANFANGSZEIT],10))*($B23<=Kursliste[ENDZEIT]),Kursliste[EINDEUTIG]),Kursliste[EINDEUTIG],0),2),0)","v":0},{"$f":"IFERROR(INDEX(Kursliste[],MATCH(SUMPRODUCT((Kursliste[TAG]=Kursplan[[#Headers],[MITTWOCH]])*(ROUNDDOWN($B23,10)>=ROUNDDOWN(Kursliste[ANFANGSZEIT],10))*($B23<=Kursliste[ENDZEIT]),Kursliste[EINDEUTIG]),Kursliste[EINDEUTIG],0),2),0)","v":0},{"$f":"IFERROR(INDEX(Kursliste[],MATCH(SUMPRODUCT((Kursliste[TAG]=Kursplan[[#Headers],[DONNERSTAG]])*(ROUNDDOWN($B23,10)>=ROUNDDOWN(Kursliste[ANFANGSZEIT],10))*($B23<=Kursliste[ENDZEIT]),Kursliste[EINDEUTIG]),Kursliste[EINDEUTIG],0),2),0)","v":0},{"$f":"IFERROR(INDEX(Kursliste[],MATCH(SUMPRODUCT((Kursliste[TAG]=Kursplan[[#Headers],[FREITAG]])*(ROUNDDOWN($B23,10)>=ROUNDDOWN(Kursliste[ANFANGSZEIT],10))*($B23<=Kursliste[ENDZEIT]),Kursliste[EINDEUTIG]),Kursliste[EINDEUTIG],0),2),0)","v":0},{"$f":"IFERROR(INDEX(Kursliste[],MATCH(SUMPRODUCT((Kursliste[TAG]=Kursplan[[#Headers],[SAMSTAG]])*(ROUNDDOWN($B23,10)>=ROUNDDOWN(Kursliste[ANFANGSZEIT],10))*($B23<=Kursliste[ENDZEIT]),Kursliste[EINDEUTIG]),Kursliste[EINDEUTIG],0),2),0)","v":0}]
[null,"13:00:00",{"$f":"IFERROR(INDEX(Kursliste[],MATCH(SUMPRODUCT((Kursliste[TAG]=Kursplan[[#Headers],[SONNTAG]])*(ROUNDDOWN($B24,10)>=ROUNDDOWN(Kursliste[ANFANGSZEIT],10))*($B24<=Kursliste[ENDZEIT]),Kursliste[EINDEUTIG]),Kursliste[EINDEUTIG],0),2),0)","v":0},{"$f":"IFERROR(INDEX(Kursliste[],MATCH(SUMPRODUCT((Kursliste[TAG]=Kursplan[[#Headers],[MONTAG]])*(ROUNDDOWN($B24,10)>=ROUNDDOWN(Kursliste[ANFANGSZEIT],10))*($B24<=Kursliste[ENDZEIT]),Kursliste[EINDEUTIG]),Kursliste[EINDEUTIG],0),2),0)","v":"WR 121"},{"$f":"IFERROR(INDEX(Kursliste[],MATCH(SUMPRODUCT((Kursliste[TAG]=Kursplan[[#Headers],[DIENSTAG]])*(ROUNDDOWN($B24,10)>=ROUNDDOWN(Kursliste[ANFANGSZEIT],10))*($B24<=Kursliste[ENDZEIT]),Kursliste[EINDEUTIG]),Kursliste[EINDEUTIG],0),2),0)","v":0},{"$f":"IFERROR(INDEX(Kursliste[],MATCH(SUMPRODUCT((Kursliste[TAG]=Kursplan[[#Headers],[MITTWOCH]])*(ROUNDDOWN($B24,10)>=ROUNDDOWN(Kursliste[ANFANGSZEIT],10))*($B24<=Kursliste[ENDZEIT]),Kursliste[EINDEUTIG]),Kursliste[EINDEUTIG],0),2),0)","v":"WR 121"},{"$f":"IFERROR(INDEX(Kursliste[],MATCH(SUMPRODUCT((Kursliste[TAG]=Kursplan[[#Headers],[DONNERSTAG]])*(ROUNDDOWN($B24,10)>=ROUNDDOWN(Kursliste[ANFANGSZEIT],10))*($B24<=Kursliste[ENDZEIT]),Kursliste[EINDEUTIG]),Kursliste[EINDEUTIG],0),2),0)","v":0},{"$f":"IFERROR(INDEX(Kursliste[],MATCH(SUMPRODUCT((Kursliste[TAG]=Kursplan[[#Headers],[FREITAG]])*(ROUNDDOWN($B24,10)>=ROUNDDOWN(Kursliste[ANFANGSZEIT],10))*($B24<=Kursliste[ENDZEIT]),Kursliste[EINDEUTIG]),Kursliste[EINDEUTIG],0),2),0)","v":0},{"$f":"IFERROR(INDEX(Kursliste[],MATCH(SUMPRODUCT((Kursliste[TAG]=Kursplan[[#Headers],[SAMSTAG]])*(ROUNDDOWN($B24,10)>=ROUNDDOWN(Kursliste[ANFANGSZEIT],10))*($B24<=Kursliste[ENDZEIT]),Kursliste[EINDEUTIG]),Kursliste[EINDEUTIG],0),2),0)","v":0}]
[null,"13:15:00",{"$f":"IFERROR(INDEX(Kursliste[],MATCH(SUMPRODUCT((Kursliste[TAG]=Kursplan[[#Headers],[SONNTAG]])*(ROUNDDOWN($B25,10)>=ROUNDDOWN(Kursliste[ANFANGSZEIT],10))*($B25<=Kursliste[ENDZEIT]),Kursliste[EINDEUTIG]),Kursliste[EINDEUTIG],0),2),0)","v":0},{"$f":"IFERROR(INDEX(Kursliste[],MATCH(SUMPRODUCT((Kursliste[TAG]=Kursplan[[#Headers],[MONTAG]])*(ROUNDDOWN($B25,10)>=ROUNDDOWN(Kursliste[ANFANGSZEIT],10))*($B25<=Kursliste[ENDZEIT]),Kursliste[EINDEUTIG]),Kursliste[EINDEUTIG],0),2),0)","v":"WR 121"},{"$f":"IFERROR(INDEX(Kursliste[],MATCH(SUMPRODUCT((Kursliste[TAG]=Kursplan[[#Headers],[DIENSTAG]])*(ROUNDDOWN($B25,10)>=ROUNDDOWN(Kursliste[ANFANGSZEIT],10))*($B25<=Kursliste[ENDZEIT]),Kursliste[EINDEUTIG]),Kursliste[EINDEUTIG],0),2),0)","v":0},{"$f":"IFERROR(INDEX(Kursliste[],MATCH(SUMPRODUCT((Kursliste[TAG]=Kursplan[[#Headers],[MITTWOCH]])*(ROUNDDOWN($B25,10)>=ROUNDDOWN(Kursliste[ANFANGSZEIT],10))*($B25<=Kursliste[ENDZEIT]),Kursliste[EINDEUTIG]),Kursliste[EINDEUTIG],0),2),0)","v":"WR 121"},{"$f":"IFERROR(INDEX(Kursliste[],MATCH(SUMPRODUCT((Kursliste[TAG]=Kursplan[[#Headers],[DONNERSTAG]])*(ROUNDDOWN($B25,10)>=ROUNDDOWN(Kursliste[ANFANGSZEIT],10))*($B25<=Kursliste[ENDZEIT]),Kursliste[EINDEUTIG]),Kursliste[EINDEUTIG],0),2),0)","v":0},{"$f":"IFERROR(INDEX(Kursliste[],MATCH(SUMPRODUCT((Kursliste[TAG]=Kursplan[[#Headers],[FREITAG]])*(ROUNDDOWN($B25,10)>=ROUNDDOWN(Kursliste[ANFANGSZEIT],10))*($B25<=Kursliste[ENDZEIT]),Kursliste[EINDEUTIG]),Kursliste[EINDEUTIG],0),2),0)","v":0},{"$f":"IFERROR(INDEX(Kursliste[],MATCH(SUMPRODUCT((Kursliste[TAG]=Kursplan[[#Headers],[SAMSTAG]])*(ROUNDDOWN($B25,10)>=ROUNDDOWN(Kursliste[ANFANGSZEIT],10))*($B25<=Kursliste[ENDZEIT]),Kursliste[EINDEUTIG]),Kursliste[EINDEUTIG],0),2),0)","v":0}]
[null,"13:30:00",{"$f":"IFERROR(INDEX(Kursliste[],MATCH(SUMPRODUCT((Kursliste[TAG]=Kursplan[[#Headers],[SONNTAG]])*(ROUNDDOWN($B26,10)>=ROUNDDOWN(Kursliste[ANFANGSZEIT],10))*($B26<=Kursliste[ENDZEIT]),Kursliste[EINDEUTIG]),Kursliste[EINDEUTIG],0),2),0)","v":0},{"$f":"IFERROR(INDEX(Kursliste[],MATCH(SUMPRODUCT((Kursliste[TAG]=Kursplan[[#Headers],[MONTAG]])*(ROUNDDOWN($B26,10)>=ROUNDDOWN(Kursliste[ANFANGSZEIT],10))*($B26<=Kursliste[ENDZEIT]),Kursliste[EINDEUTIG]),Kursliste[EINDEUTIG],0),2),0)","v":"WR 121"},{"$f":"IFERROR(INDEX(Kursliste[],MATCH(SUMPRODUCT((Kursliste[TAG]=Kursplan[[#Headers],[DIENSTAG]])*(ROUNDDOWN($B26,10)>=ROUNDDOWN(Kursliste[ANFANGSZEIT],10))*($B26<=Kursliste[ENDZEIT]),Kursliste[EINDEUTIG]),Kursliste[EINDEUTIG],0),2),0)","v":0},{"$f":"IFERROR(INDEX(Kursliste[],MATCH(SUMPRODUCT((Kursliste[TAG]=Kursplan[[#Headers],[MITTWOCH]])*(ROUNDDOWN($B26,10)>=ROUNDDOWN(Kursliste[ANFANGSZEIT],10))*($B26<=Kursliste[ENDZEIT]),Kursliste[EINDEUTIG]),Kursliste[EINDEUTIG],0),2),0)","v":"WR 121"},{"$f":"IFERROR(INDEX(Kursliste[],MATCH(SUMPRODUCT((Kursliste[TAG]=Kursplan[[#Headers],[DONNERSTAG]])*(ROUNDDOWN($B26,10)>=ROUNDDOWN(Kursliste[ANFANGSZEIT],10))*($B26<=Kursliste[ENDZEIT]),Kursliste[EINDEUTIG]),Kursliste[EINDEUTIG],0),2),0)","v":0},{"$f":"IFERROR(INDEX(Kursliste[],MATCH(SUMPRODUCT((Kursliste[TAG]=Kursplan[[#Headers],[FREITAG]])*(ROUNDDOWN($B26,10)>=ROUNDDOWN(Kursliste[ANFANGSZEIT],10))*($B26<=Kursliste[ENDZEIT]),Kursliste[EINDEUTIG]),Kursliste[EINDEUTIG],0),2),0)","v":0},{"$f":"IFERROR(INDEX(Kursliste[],MATCH(SUMPRODUCT((Kursliste[TAG]=Kursplan[[#Headers],[SAMSTAG]])*(ROUNDDOWN($B26,10)>=ROUNDDOWN(Kursliste[ANFANGSZEIT],10))*($B26<=Kursliste[ENDZEIT]),Kursliste[EINDEUTIG]),Kursliste[EINDEUTIG],0),2),0)","v":0}]
[null,"13:45:00",{"$f":"IFERROR(INDEX(Kursliste[],MATCH(SUMPRODUCT((Kursliste[TAG]=Kursplan[[#Headers],[SONNTAG]])*(ROUNDDOWN($B27,10)>=ROUNDDOWN(Kursliste[ANFANGSZEIT],10))*($B27<=Kursliste[ENDZEIT]),Kursliste[EINDEUTIG]),Kursliste[EINDEUTIG],0),2),0)","v":0},{"$f":"IFERROR(INDEX(Kursliste[],MATCH(SUMPRODUCT((Kursliste[TAG]=Kursplan[[#Headers],[MONTAG]])*(ROUNDDOWN($B27,10)>=ROUNDDOWN(Kursliste[ANFANGSZEIT],10))*($B27<=Kursliste[ENDZEIT]),Kursliste[EINDEUTIG]),Kursliste[EINDEUTIG],0),2),0)","v":"WR 121"},{"$f":"IFERROR(INDEX(Kursliste[],MATCH(SUMPRODUCT((Kursliste[TAG]=Kursplan[[#Headers],[DIENSTAG]])*(ROUNDDOWN($B27,10)>=ROUNDDOWN(Kursliste[ANFANGSZEIT],10))*($B27<=Kursliste[ENDZEIT]),Kursliste[EINDEUTIG]),Kursliste[EINDEUTIG],0),2),0)","v":0},{"$f":"IFERROR(INDEX(Kursliste[],MATCH(SUMPRODUCT((Kursliste[TAG]=Kursplan[[#Headers],[MITTWOCH]])*(ROUNDDOWN($B27,10)>=ROUNDDOWN(Kursliste[ANFANGSZEIT],10))*($B27<=Kursliste[ENDZEIT]),Kursliste[EINDEUTIG]),Kursliste[EINDEUTIG],0),2),0)","v":"WR 121"},{"$f":"IFERROR(INDEX(Kursliste[],MATCH(SUMPRODUCT((Kursliste[TAG]=Kursplan[[#Headers],[DONNERSTAG]])*(ROUNDDOWN($B27,10)>=ROUNDDOWN(Kursliste[ANFANGSZEIT],10))*($B27<=Kursliste[ENDZEIT]),Kursliste[EINDEUTIG]),Kursliste[EINDEUTIG],0),2),0)","v":0},{"$f":"IFERROR(INDEX(Kursliste[],MATCH(SUMPRODUCT((Kursliste[TAG]=Kursplan[[#Headers],[FREITAG]])*(ROUNDDOWN($B27,10)>=ROUNDDOWN(Kursliste[ANFANGSZEIT],10))*($B27<=Kursliste[ENDZEIT]),Kursliste[EINDEUTIG]),Kursliste[EINDEUTIG],0),2),0)","v":0},{"$f":"IFERROR(INDEX(Kursliste[],MATCH(SUMPRODUCT((Kursliste[TAG]=Kursplan[[#Headers],[SAMSTAG]])*(ROUNDDOWN($B27,10)>=ROUNDDOWN(Kursliste[ANFANGSZEIT],10))*($B27<=Kursliste[ENDZEIT]),Kursliste[EINDEUTIG]),Kursliste[EINDEUTIG],0),2),0)","v":0}]
[null,"14:00:00",{"$f":"IFERROR(INDEX(Kursliste[],MATCH(SUMPRODUCT((Kursliste[TAG]=Kursplan[[#Headers],[SONNTAG]])*(ROUNDDOWN($B28,10)>=ROUNDDOWN(Kursliste[ANFANGSZEIT],10))*($B28<=Kursliste[ENDZEIT]),Kursliste[EINDEUTIG]),Kursliste[EINDEUTIG],0),2),0)","v":0},{"$f":"IFERROR(INDEX(Kursliste[],MATCH(SUMPRODUCT((Kursliste[TAG]=Kursplan[[#Headers],[MONTAG]])*(ROUNDDOWN($B28,10)>=ROUNDDOWN(Kursliste[ANFANGSZEIT],10))*($B28<=Kursliste[ENDZEIT]),Kursliste[EINDEUTIG]),Kursliste[EINDEUTIG],0),2),0)","v":"WR 121"},{"$f":"IFERROR(INDEX(Kursliste[],MATCH(SUMPRODUCT((Kursliste[TAG]=Kursplan[[#Headers],[DIENSTAG]])*(ROUNDDOWN($B28,10)>=ROUNDDOWN(Kursliste[ANFANGSZEIT],10))*($B28<=Kursliste[ENDZEIT]),Kursliste[EINDEUTIG]),Kursliste[EINDEUTIG],0),2),0)","v":0},{"$f":"IFERROR(INDEX(Kursliste[],MATCH(SUMPRODUCT((Kursliste[TAG]=Kursplan[[#Headers],[MITTWOCH]])*(ROUNDDOWN($B28,10)>=ROUNDDOWN(Kursliste[ANFANGSZEIT],10))*($B28<=Kursliste[ENDZEIT]),Kursliste[EINDEUTIG]),Kursliste[EINDEUTIG],0),2),0)","v":"WR 121"},{"$f":"IFERROR(INDEX(Kursliste[],MATCH(SUMPRODUCT((Kursliste[TAG]=Kursplan[[#Headers],[DONNERSTAG]])*(ROUNDDOWN($B28,10)>=ROUNDDOWN(Kursliste[ANFANGSZEIT],10))*($B28<=Kursliste[ENDZEIT]),Kursliste[EINDEUTIG]),Kursliste[EINDEUTIG],0),2),0)","v":0},{"$f":"IFERROR(INDEX(Kursliste[],MATCH(SUMPRODUCT((Kursliste[TAG]=Kursplan[[#Headers],[FREITAG]])*(ROUNDDOWN($B28,10)>=ROUNDDOWN(Kursliste[ANFANGSZEIT],10))*($B28<=Kursliste[ENDZEIT]),Kursliste[EINDEUTIG]),Kursliste[EINDEUTIG],0),2),0)","v":0},{"$f":"IFERROR(INDEX(Kursliste[],MATCH(SUMPRODUCT((Kursliste[TAG]=Kursplan[[#Headers],[SAMSTAG]])*(ROUNDDOWN($B28,10)>=ROUNDDOWN(Kursliste[ANFANGSZEIT],10))*($B28<=Kursliste[ENDZEIT]),Kursliste[EINDEUTIG]),Kursliste[EINDEUTIG],0),2),0)","v":0}]
[null,"14:15:00",{"$f":"IFERROR(INDEX(Kursliste[],MATCH(SUMPRODUCT((Kursliste[TAG]=Kursplan[[#Headers],[SONNTAG]])*(ROUNDDOWN($B29,10)>=ROUNDDOWN(Kursliste[ANFANGSZEIT],10))*($B29<=Kursliste[ENDZEIT]),Kursliste[EINDEUTIG]),Kursliste[EINDEUTIG],0),2),0)","v":0},{"$f":"IFERROR(INDEX(Kursliste[],MATCH(SUMPRODUCT((Kursliste[TAG]=Kursplan[[#Headers],[MONTAG]])*(ROUNDDOWN($B29,10)>=ROUNDDOWN(Kursliste[ANFANGSZEIT],10))*($B29<=Kursliste[ENDZEIT]),Kursliste[EINDEUTIG]),Kursliste[EINDEUTIG],0),2),0)","v":0},{"$f":"IFERROR(INDEX(Kursliste[],MATCH(SUMPRODUCT((Kursliste[TAG]=Kursplan[[#Headers],[DIENSTAG]])*(ROUNDDOWN($B29,10)>=ROUNDDOWN(Kursliste[ANFANGSZEIT],10))*($B29<=Kursliste[ENDZEIT]),Kursliste[EINDEUTIG]),Kursliste[EINDEUTIG],0),2),0)","v":0},{"$f":"IFERROR(INDEX(Kursliste[],MATCH(SUMPRODUCT((Kursliste[TAG]=Kursplan[[#Headers],[MITTWOCH]])*(ROUNDDOWN($B29,10)>=ROUNDDOWN(Kursliste[ANFANGSZEIT],10))*($B29<=Kursliste[ENDZEIT]),Kursliste[EINDEUTIG]),Kursliste[EINDEUTIG],0),2),0)","v":0},{"$f":"IFERROR(INDEX(Kursliste[],MATCH(SUMPRODUCT((Kursliste[TAG]=Kursplan[[#Headers],[DONNERSTAG]])*(ROUNDDOWN($B29,10)>=ROUNDDOWN(Kursliste[ANFANGSZEIT],10))*($B29<=Kursliste[ENDZEIT]),Kursliste[EINDEUTIG]),Kursliste[EINDEUTIG],0),2),0)","v":0},{"$f":"IFERROR(INDEX(Kursliste[],MATCH(SUMPRODUCT((Kursliste[TAG]=Kursplan[[#Headers],[FREITAG]])*(ROUNDDOWN($B29,10)>=ROUNDDOWN(Kursliste[ANFANGSZEIT],10))*($B29<=Kursliste[ENDZEIT]),Kursliste[EINDEUTIG]),Kursliste[EINDEUTIG],0),2),0)","v":0},{"$f":"IFERROR(INDEX(Kursliste[],MATCH(SUMPRODUCT((Kursliste[TAG]=Kursplan[[#Headers],[SAMSTAG]])*(ROUNDDOWN($B29,10)>=ROUNDDOWN(Kursliste[ANFANGSZEIT],10))*($B29<=Kursliste[ENDZEIT]),Kursliste[EINDEUTIG]),Kursliste[EINDEUTIG],0),2),0)","v":0}]
[null,"14:30:00",{"$f":"IFERROR(INDEX(Kursliste[],MATCH(SUMPRODUCT((Kursliste[TAG]=Kursplan[[#Headers],[SONNTAG]])*(ROUNDDOWN($B30,10)>=ROUNDDOWN(Kursliste[ANFANGSZEIT],10))*($B30<=Kursliste[ENDZEIT]),Kursliste[EINDEUTIG]),Kursliste[EINDEUTIG],0),2),0)","v":0},{"$f":"IFERROR(INDEX(Kursliste[],MATCH(SUMPRODUCT((Kursliste[TAG]=Kursplan[[#Headers],[MONTAG]])*(ROUNDDOWN($B30,10)>=ROUNDDOWN(Kursliste[ANFANGSZEIT],10))*($B30<=Kursliste[ENDZEIT]),Kursliste[EINDEUTIG]),Kursliste[EINDEUTIG],0),2),0)","v":0},{"$f":"IFERROR(INDEX(Kursliste[],MATCH(SUMPRODUCT((Kursliste[TAG]=Kursplan[[#Headers],[DIENSTAG]])*(ROUNDDOWN($B30,10)>=ROUNDDOWN(Kursliste[ANFANGSZEIT],10))*($B30<=Kursliste[ENDZEIT]),Kursliste[EINDEUTIG]),Kursliste[EINDEUTIG],0),2),0)","v":0},{"$f":"IFERROR(INDEX(Kursliste[],MATCH(SUMPRODUCT((Kursliste[TAG]=Kursplan[[#Headers],[MITTWOCH]])*(ROUNDDOWN($B30,10)>=ROUNDDOWN(Kursliste[ANFANGSZEIT],10))*($B30<=Kursliste[ENDZEIT]),Kursliste[EINDEUTIG]),Kursliste[EINDEUTIG],0),2),0)","v":0},{"$f":"IFERROR(INDEX(Kursliste[],MATCH(SUMPRODUCT((Kursliste[TAG]=Kursplan[[#Headers],[DONNERSTAG]])*(ROUNDDOWN($B30,10)>=ROUNDDOWN(Kursliste[ANFANGSZEIT],10))*($B30<=Kursliste[ENDZEIT]),Kursliste[EINDEUTIG]),Kursliste[EINDEUTIG],0),2),0)","v":0},{"$f":"IFERROR(INDEX(Kursliste[],MATCH(SUMPRODUCT((Kursliste[TAG]=Kursplan[[#Headers],[FREITAG]])*(ROUNDDOWN($B30,10)>=ROUNDDOWN(Kursliste[ANFANGSZEIT],10))*($B30<=Kursliste[ENDZEIT]),Kursliste[EINDEUTIG]),Kursliste[EINDEUTIG],0),2),0)","v":0},{"$f":"IFERROR(INDEX(Kursliste[],MATCH(SUMPRODUCT((Kursliste[TAG]=Kursplan[[#Headers],[SAMSTAG]])*(ROUNDDOWN($B30,10)>=ROUNDDOWN(Kursliste[ANFANGSZEIT],10))*($B30<=Kursliste[ENDZEIT]),Kursliste[EINDEUTIG]),Kursliste[EINDEUTIG],0),2),0)","v":0}]
[null,"14:45:00",{"$f":"IFERROR(INDEX(Kursliste[],MATCH(SUMPRODUCT((Kursliste[TAG]=Kursplan[[#Headers],[SONNTAG]])*(ROUNDDOWN($B31,10)>=ROUNDDOWN(Kursliste[ANFANGSZEIT],10))*($B31<=Kursliste[ENDZEIT]),Kursliste[EINDEUTIG]),Kursliste[EINDEUTIG],0),2),0)","v":0},{"$f":"IFERROR(INDEX(Kursliste[],MATCH(SUMPRODUCT((Kursliste[TAG]=Kursplan[[#Headers],[MONTAG]])*(ROUNDDOWN($B31,10)>=ROUNDDOWN(Kursliste[ANFANGSZEIT],10))*($B31<=Kursliste[ENDZEIT]),Kursliste[EINDEUTIG]),Kursliste[EINDEUTIG],0),2),0)","v":0},{"$f":"IFERROR(INDEX(Kursliste[],MATCH(SUMPRODUCT((Kursliste[TAG]=Kursplan[[#Headers],[DIENSTAG]])*(ROUNDDOWN($B31,10)>=ROUNDDOWN(Kursliste[ANFANGSZEIT],10))*($B31<=Kursliste[ENDZEIT]),Kursliste[EINDEUTIG]),Kursliste[EINDEUTIG],0),2),0)","v":0},{"$f":"IFERROR(INDEX(Kursliste[],MATCH(SUMPRODUCT((Kursliste[TAG]=Kursplan[[#Headers],[MITTWOCH]])*(ROUNDDOWN($B31,10)>=ROUNDDOWN(Kursliste[ANFANGSZEIT],10))*($B31<=Kursliste[ENDZEIT]),Kursliste[EINDEUTIG]),Kursliste[EINDEUTIG],0),2),0)","v":0},{"$f":"IFERROR(INDEX(Kursliste[],MATCH(SUMPRODUCT((Kursliste[TAG]=Kursplan[[#Headers],[DONNERSTAG]])*(ROUNDDOWN($B31,10)>=ROUNDDOWN(Kursliste[ANFANGSZEIT],10))*($B31<=Kursliste[ENDZEIT]),Kursliste[EINDEUTIG]),Kursliste[EINDEUTIG],0),2),0)","v":0},{"$f":"IFERROR(INDEX(Kursliste[],MATCH(SUMPRODUCT((Kursliste[TAG]=Kursplan[[#Headers],[FREITAG]])*(ROUNDDOWN($B31,10)>=ROUNDDOWN(Kursliste[ANFANGSZEIT],10))*($B31<=Kursliste[ENDZEIT]),Kursliste[EINDEUTIG]),Kursliste[EINDEUTIG],0),2),0)","v":0},{"$f":"IFERROR(INDEX(Kursliste[],MATCH(SUMPRODUCT((Kursliste[TAG]=Kursplan[[#Headers],[SAMSTAG]])*(ROUNDDOWN($B31,10)>=ROUNDDOWN(Kursliste[ANFANGSZEIT],10))*($B31<=Kursliste[ENDZEIT]),Kursliste[EINDEUTIG]),Kursliste[EINDEUTIG],0),2),0)","v":0}]
[null,"15:00:00",{"$f":"IFERROR(INDEX(Kursliste[],MATCH(SUMPRODUCT((Kursliste[TAG]=Kursplan[[#Headers],[SONNTAG]])*(ROUNDDOWN($B32,10)>=ROUNDDOWN(Kursliste[ANFANGSZEIT],10))*($B32<=Kursliste[ENDZEIT]),Kursliste[EINDEUTIG]),Kursliste[EINDEUTIG],0),2),0)","v":0},{"$f":"IFERROR(INDEX(Kursliste[],MATCH(SUMPRODUCT((Kursliste[TAG]=Kursplan[[#Headers],[MONTAG]])*(ROUNDDOWN($B32,10)>=ROUNDDOWN(Kursliste[ANFANGSZEIT],10))*($B32<=Kursliste[ENDZEIT]),Kursliste[EINDEUTIG]),Kursliste[EINDEUTIG],0),2),0)","v":0},{"$f":"IFERROR(INDEX(Kursliste[],MATCH(SUMPRODUCT((Kursliste[TAG]=Kursplan[[#Headers],[DIENSTAG]])*(ROUNDDOWN($B32,10)>=ROUNDDOWN(Kursliste[ANFANGSZEIT],10))*($B32<=Kursliste[ENDZEIT]),Kursliste[EINDEUTIG]),Kursliste[EINDEUTIG],0),2),0)","v":0},{"$f":"IFERROR(INDEX(Kursliste[],MATCH(SUMPRODUCT((Kursliste[TAG]=Kursplan[[#Headers],[MITTWOCH]])*(ROUNDDOWN($B32,10)>=ROUNDDOWN(Kursliste[ANFANGSZEIT],10))*($B32<=Kursliste[ENDZEIT]),Kursliste[EINDEUTIG]),Kursliste[EINDEUTIG],0),2),0)","v":0},{"$f":"IFERROR(INDEX(Kursliste[],MATCH(SUMPRODUCT((Kursliste[TAG]=Kursplan[[#Headers],[DONNERSTAG]])*(ROUNDDOWN($B32,10)>=ROUNDDOWN(Kursliste[ANFANGSZEIT],10))*($B32<=Kursliste[ENDZEIT]),Kursliste[EINDEUTIG]),Kursliste[EINDEUTIG],0),2),0)","v":0},{"$f":"IFERROR(INDEX(Kursliste[],MATCH(SUMPRODUCT((Kursliste[TAG]=Kursplan[[#Headers],[FREITAG]])*(ROUNDDOWN($B32,10)>=ROUNDDOWN(Kursliste[ANFANGSZEIT],10))*($B32<=Kursliste[ENDZEIT]),Kursliste[EINDEUTIG]),Kursliste[EINDEUTIG],0),2),0)","v":0},{"$f":"IFERROR(INDEX(Kursliste[],MATCH(SUMPRODUCT((Kursliste[TAG]=Kursplan[[#Headers],[SAMSTAG]])*(ROUNDDOWN($B32,10)>=ROUNDDOWN(Kursliste[ANFANGSZEIT],10))*($B32<=Kursliste[ENDZEIT]),Kursliste[EINDEUTIG]),Kursliste[EINDEUTIG],0),2),0)","v":0}]
[null,"15:15:00",{"$f":"IFERROR(INDEX(Kursliste[],MATCH(SUMPRODUCT((Kursliste[TAG]=Kursplan[[#Headers],[SONNTAG]])*(ROUNDDOWN($B33,10)>=ROUNDDOWN(Kursliste[ANFANGSZEIT],10))*($B33<=Kursliste[ENDZEIT]),Kursliste[EINDEUTIG]),Kursliste[EINDEUTIG],0),2),0)","v":0},{"$f":"IFERROR(INDEX(Kursliste[],MATCH(SUMPRODUCT((Kursliste[TAG]=Kursplan[[#Headers],[MONTAG]])*(ROUNDDOWN($B33,10)>=ROUNDDOWN(Kursliste[ANFANGSZEIT],10))*($B33<=Kursliste[ENDZEIT]),Kursliste[EINDEUTIG]),Kursliste[EINDEUTIG],0),2),0)","v":0},{"$f":"IFERROR(INDEX(Kursliste[],MATCH(SUMPRODUCT((Kursliste[TAG]=Kursplan[[#Headers],[DIENSTAG]])*(ROUNDDOWN($B33,10)>=ROUNDDOWN(Kursliste[ANFANGSZEIT],10))*($B33<=Kursliste[ENDZEIT]),Kursliste[EINDEUTIG]),Kursliste[EINDEUTIG],0),2),0)","v":0},{"$f":"IFERROR(INDEX(Kursliste[],MATCH(SUMPRODUCT((Kursliste[TAG]=Kursplan[[#Headers],[MITTWOCH]])*(ROUNDDOWN($B33,10)>=ROUNDDOWN(Kursliste[ANFANGSZEIT],10))*($B33<=Kursliste[ENDZEIT]),Kursliste[EINDEUTIG]),Kursliste[EINDEUTIG],0),2),0)","v":0},{"$f":"IFERROR(INDEX(Kursliste[],MATCH(SUMPRODUCT((Kursliste[TAG]=Kursplan[[#Headers],[DONNERSTAG]])*(ROUNDDOWN($B33,10)>=ROUNDDOWN(Kursliste[ANFANGSZEIT],10))*($B33<=Kursliste[ENDZEIT]),Kursliste[EINDEUTIG]),Kursliste[EINDEUTIG],0),2),0)","v":0},{"$f":"IFERROR(INDEX(Kursliste[],MATCH(SUMPRODUCT((Kursliste[TAG]=Kursplan[[#Headers],[FREITAG]])*(ROUNDDOWN($B33,10)>=ROUNDDOWN(Kursliste[ANFANGSZEIT],10))*($B33<=Kursliste[ENDZEIT]),Kursliste[EINDEUTIG]),Kursliste[EINDEUTIG],0),2),0)","v":0},{"$f":"IFERROR(INDEX(Kursliste[],MATCH(SUMPRODUCT((Kursliste[TAG]=Kursplan[[#Headers],[SAMSTAG]])*(ROUNDDOWN($B33,10)>=ROUNDDOWN(Kursliste[ANFANGSZEIT],10))*($B33<=Kursliste[ENDZEIT]),Kursliste[EINDEUTIG]),Kursliste[EINDEUTIG],0),2),0)","v":0}]
[null,"15:30:00",{"$f":"IFERROR(INDEX(Kursliste[],MATCH(SUMPRODUCT((Kursliste[TAG]=Kursplan[[#Headers],[SONNTAG]])*(ROUNDDOWN($B34,10)>=ROUNDDOWN(Kursliste[ANFANGSZEIT],10))*($B34<=Kursliste[ENDZEIT]),Kursliste[EINDEUTIG]),Kursliste[EINDEUTIG],0),2),0)","v":0},{"$f":"IFERROR(INDEX(Kursliste[],MATCH(SUMPRODUCT((Kursliste[TAG]=Kursplan[[#Headers],[MONTAG]])*(ROUNDDOWN($B34,10)>=ROUNDDOWN(Kursliste[ANFANGSZEIT],10))*($B34<=Kursliste[ENDZEIT]),Kursliste[EINDEUTIG]),Kursliste[EINDEUTIG],0),2),0)","v":0},{"$f":"IFERROR(INDEX(Kursliste[],MATCH(SUMPRODUCT((Kursliste[TAG]=Kursplan[[#Headers],[DIENSTAG]])*(ROUNDDOWN($B34,10)>=ROUNDDOWN(Kursliste[ANFANGSZEIT],10))*($B34<=Kursliste[ENDZEIT]),Kursliste[EINDEUTIG]),Kursliste[EINDEUTIG],0),2),0)","v":0},{"$f":"IFERROR(INDEX(Kursliste[],MATCH(SUMPRODUCT((Kursliste[TAG]=Kursplan[[#Headers],[MITTWOCH]])*(ROUNDDOWN($B34,10)>=ROUNDDOWN(Kursliste[ANFANGSZEIT],10))*($B34<=Kursliste[ENDZEIT]),Kursliste[EINDEUTIG]),Kursliste[EINDEUTIG],0),2),0)","v":0},{"$f":"IFERROR(INDEX(Kursliste[],MATCH(SUMPRODUCT((Kursliste[TAG]=Kursplan[[#Headers],[DONNERSTAG]])*(ROUNDDOWN($B34,10)>=ROUNDDOWN(Kursliste[ANFANGSZEIT],10))*($B34<=Kursliste[ENDZEIT]),Kursliste[EINDEUTIG]),Kursliste[EINDEUTIG],0),2),0)","v":0},{"$f":"IFERROR(INDEX(Kursliste[],MATCH(SUMPRODUCT((Kursliste[TAG]=Kursplan[[#Headers],[FREITAG]])*(ROUNDDOWN($B34,10)>=ROUNDDOWN(Kursliste[ANFANGSZEIT],10))*($B34<=Kursliste[ENDZEIT]),Kursliste[EINDEUTIG]),Kursliste[EINDEUTIG],0),2),0)","v":0},{"$f":"IFERROR(INDEX(Kursliste[],MATCH(SUMPRODUCT((Kursliste[TAG]=Kursplan[[#Headers],[SAMSTAG]])*(ROUNDDOWN($B34,10)>=ROUNDDOWN(Kursliste[ANFANGSZEIT],10))*($B34<=Kursliste[ENDZEIT]),Kursliste[EINDEUTIG]),Kursliste[EINDEUTIG],0),2),0)","v":0}]
[null,"15:45:00",{"$f":"IFERROR(INDEX(Kursliste[],MATCH(SUMPRODUCT((Kursliste[TAG]=Kursplan[[#Headers],[SONNTAG]])*(ROUNDDOWN($B35,10)>=ROUNDDOWN(Kursliste[ANFANGSZEIT],10))*($B35<=Kursliste[ENDZEIT]),Kursliste[EINDEUTIG]),Kursliste[EINDEUTIG],0),2),0)","v":0},{"$f":"IFERROR(INDEX(Kursliste[],MATCH(SUMPRODUCT((Kursliste[TAG]=Kursplan[[#Headers],[MONTAG]])*(ROUNDDOWN($B35,10)>=ROUNDDOWN(Kursliste[ANFANGSZEIT],10))*($B35<=Kursliste[ENDZEIT]),Kursliste[EINDEUTIG]),Kursliste[EINDEUTIG],0),2),0)","v":0},{"$f":"IFERROR(INDEX(Kursliste[],MATCH(SUMPRODUCT((Kursliste[TAG]=Kursplan[[#Headers],[DIENSTAG]])*(ROUNDDOWN($B35,10)>=ROUNDDOWN(Kursliste[ANFANGSZEIT],10))*($B35<=Kursliste[ENDZEIT]),Kursliste[EINDEUTIG]),Kursliste[EINDEUTIG],0),2),0)","v":0},{"$f":"IFERROR(INDEX(Kursliste[],MATCH(SUMPRODUCT((Kursliste[TAG]=Kursplan[[#Headers],[MITTWOCH]])*(ROUNDDOWN($B35,10)>=ROUNDDOWN(Kursliste[ANFANGSZEIT],10))*($B35<=Kursliste[ENDZEIT]),Kursliste[EINDEUTIG]),Kursliste[EINDEUTIG],0),2),0)","v":0},{"$f":"IFERROR(INDEX(Kursliste[],MATCH(SUMPRODUCT((Kursliste[TAG]=Kursplan[[#Headers],[DONNERSTAG]])*(ROUNDDOWN($B35,10)>=ROUNDDOWN(Kursliste[ANFANGSZEIT],10))*($B35<=Kursliste[ENDZEIT]),Kursliste[EINDEUTIG]),Kursliste[EINDEUTIG],0),2),0)","v":0},{"$f":"IFERROR(INDEX(Kursliste[],MATCH(SUMPRODUCT((Kursliste[TAG]=Kursplan[[#Headers],[FREITAG]])*(ROUNDDOWN($B35,10)>=ROUNDDOWN(Kursliste[ANFANGSZEIT],10))*($B35<=Kursliste[ENDZEIT]),Kursliste[EINDEUTIG]),Kursliste[EINDEUTIG],0),2),0)","v":0},{"$f":"IFERROR(INDEX(Kursliste[],MATCH(SUMPRODUCT((Kursliste[TAG]=Kursplan[[#Headers],[SAMSTAG]])*(ROUNDDOWN($B35,10)>=ROUNDDOWN(Kursliste[ANFANGSZEIT],10))*($B35<=Kursliste[ENDZEIT]),Kursliste[EINDEUTIG]),Kursliste[EINDEUTIG],0),2),0)","v":0}]
[null,"16:00:00",{"$f":"IFERROR(INDEX(Kursliste[],MATCH(SUMPRODUCT((Kursliste[TAG]=Kursplan[[#Headers],[SONNTAG]])*(ROUNDDOWN($B36,10)>=ROUNDDOWN(Kursliste[ANFANGSZEIT],10))*($B36<=Kursliste[ENDZEIT]),Kursliste[EINDEUTIG]),Kursliste[EINDEUTIG],0),2),0)","v":0},{"$f":"IFERROR(INDEX(Kursliste[],MATCH(SUMPRODUCT((Kursliste[TAG]=Kursplan[[#Headers],[MONTAG]])*(ROUNDDOWN($B36,10)>=ROUNDDOWN(Kursliste[ANFANGSZEIT],10))*($B36<=Kursliste[ENDZEIT]),Kursliste[EINDEUTIG]),Kursliste[EINDEUTIG],0),2),0)","v":"SP-111"},{"$f":"IFERROR(INDEX(Kursliste[],MATCH(SUMPRODUCT((Kursliste[TAG]=Kursplan[[#Headers],[DIENSTAG]])*(ROUNDDOWN($B36,10)>=ROUNDDOWN(Kursliste[ANFANGSZEIT],10))*($B36<=Kursliste[ENDZEIT]),Kursliste[EINDEUTIG]),Kursliste[EINDEUTIG],0),2),0)","v":0},{"$f":"IFERROR(INDEX(Kursliste[],MATCH(SUMPRODUCT((Kursliste[TAG]=Kursplan[[#Headers],[MITTWOCH]])*(ROUNDDOWN($B36,10)>=ROUNDDOWN(Kursliste[ANFANGSZEIT],10))*($B36<=Kursliste[ENDZEIT]),Kursliste[EINDEUTIG]),Kursliste[EINDEUTIG],0),2),0)","v":0},{"$f":"IFERROR(INDEX(Kursliste[],MATCH(SUMPRODUCT((Kursliste[TAG]=Kursplan[[#Headers],[DONNERSTAG]])*(ROUNDDOWN($B36,10)>=ROUNDDOWN(Kursliste[ANFANGSZEIT],10))*($B36<=Kursliste[ENDZEIT]),Kursliste[EINDEUTIG]),Kursliste[EINDEUTIG],0),2),0)","v":0},{"$f":"IFERROR(INDEX(Kursliste[],MATCH(SUMPRODUCT((Kursliste[TAG]=Kursplan[[#Headers],[FREITAG]])*(ROUNDDOWN($B36,10)>=ROUNDDOWN(Kursliste[ANFANGSZEIT],10))*($B36<=Kursliste[ENDZEIT]),Kursliste[EINDEUTIG]),Kursliste[EINDEUTIG],0),2),0)","v":0},{"$f":"IFERROR(INDEX(Kursliste[],MATCH(SUMPRODUCT((Kursliste[TAG]=Kursplan[[#Headers],[SAMSTAG]])*(ROUNDDOWN($B36,10)>=ROUNDDOWN(Kursliste[ANFANGSZEIT],10))*($B36<=Kursliste[ENDZEIT]),Kursliste[EINDEUTIG]),Kursliste[EINDEUTIG],0),2),0)","v":0}]
[null,"16:15:00",{"$f":"IFERROR(INDEX(Kursliste[],MATCH(SUMPRODUCT((Kursliste[TAG]=Kursplan[[#Headers],[SONNTAG]])*(ROUNDDOWN($B37,10)>=ROUNDDOWN(Kursliste[ANFANGSZEIT],10))*($B37<=Kursliste[ENDZEIT]),Kursliste[EINDEUTIG]),Kursliste[EINDEUTIG],0),2),0)","v":0},{"$f":"IFERROR(INDEX(Kursliste[],MATCH(SUMPRODUCT((Kursliste[TAG]=Kursplan[[#Headers],[MONTAG]])*(ROUNDDOWN($B37,10)>=ROUNDDOWN(Kursliste[ANFANGSZEIT],10))*($B37<=Kursliste[ENDZEIT]),Kursliste[EINDEUTIG]),Kursliste[EINDEUTIG],0),2),0)","v":"SP-111"},{"$f":"IFERROR(INDEX(Kursliste[],MATCH(SUMPRODUCT((Kursliste[TAG]=Kursplan[[#Headers],[DIENSTAG]])*(ROUNDDOWN($B37,10)>=ROUNDDOWN(Kursliste[ANFANGSZEIT],10))*($B37<=Kursliste[ENDZEIT]),Kursliste[EINDEUTIG]),Kursliste[EINDEUTIG],0),2),0)","v":0},{"$f":"IFERROR(INDEX(Kursliste[],MATCH(SUMPRODUCT((Kursliste[TAG]=Kursplan[[#Headers],[MITTWOCH]])*(ROUNDDOWN($B37,10)>=ROUNDDOWN(Kursliste[ANFANGSZEIT],10))*($B37<=Kursliste[ENDZEIT]),Kursliste[EINDEUTIG]),Kursliste[EINDEUTIG],0),2),0)","v":0},{"$f":"IFERROR(INDEX(Kursliste[],MATCH(SUMPRODUCT((Kursliste[TAG]=Kursplan[[#Headers],[DONNERSTAG]])*(ROUNDDOWN($B37,10)>=ROUNDDOWN(Kursliste[ANFANGSZEIT],10))*($B37<=Kursliste[ENDZEIT]),Kursliste[EINDEUTIG]),Kursliste[EINDEUTIG],0),2),0)","v":0},{"$f":"IFERROR(INDEX(Kursliste[],MATCH(SUMPRODUCT((Kursliste[TAG]=Kursplan[[#Headers],[FREITAG]])*(ROUNDDOWN($B37,10)>=ROUNDDOWN(Kursliste[ANFANGSZEIT],10))*($B37<=Kursliste[ENDZEIT]),Kursliste[EINDEUTIG]),Kursliste[EINDEUTIG],0),2),0)","v":0},{"$f":"IFERROR(INDEX(Kursliste[],MATCH(SUMPRODUCT((Kursliste[TAG]=Kursplan[[#Headers],[SAMSTAG]])*(ROUNDDOWN($B37,10)>=ROUNDDOWN(Kursliste[ANFANGSZEIT],10))*($B37<=Kursliste[ENDZEIT]),Kursliste[EINDEUTIG]),Kursliste[EINDEUTIG],0),2),0)","v":0}]
[null,"16:30:00",{"$f":"IFERROR(INDEX(Kursliste[],MATCH(SUMPRODUCT((Kursliste[TAG]=Kursplan[[#Headers],[SONNTAG]])*(ROUNDDOWN($B38,10)>=ROUNDDOWN(Kursliste[ANFANGSZEIT],10))*($B38<=Kursliste[ENDZEIT]),Kursliste[EINDEUTIG]),Kursliste[EINDEUTIG],0),2),0)","v":0},{"$f":"IFERROR(INDEX(Kursliste[],MATCH(SUMPRODUCT((Kursliste[TAG]=Kursplan[[#Headers],[MONTAG]])*(ROUNDDOWN($B38,10)>=ROUNDDOWN(Kursliste[ANFANGSZEIT],10))*($B38<=Kursliste[ENDZEIT]),Kursliste[EINDEUTIG]),Kursliste[EINDEUTIG],0),2),0)","v":"SP-111"},{"$f":"IFERROR(INDEX(Kursliste[],MATCH(SUMPRODUCT((Kursliste[TAG]=Kursplan[[#Headers],[DIENSTAG]])*(ROUNDDOWN($B38,10)>=ROUNDDOWN(Kursliste[ANFANGSZEIT],10))*($B38<=Kursliste[ENDZEIT]),Kursliste[EINDEUTIG]),Kursliste[EINDEUTIG],0),2),0)","v":0},{"$f":"IFERROR(INDEX(Kursliste[],MATCH(SUMPRODUCT((Kursliste[TAG]=Kursplan[[#Headers],[MITTWOCH]])*(ROUNDDOWN($B38,10)>=ROUNDDOWN(Kursliste[ANFANGSZEIT],10))*($B38<=Kursliste[ENDZEIT]),Kursliste[EINDEUTIG]),Kursliste[EINDEUTIG],0),2),0)","v":0},{"$f":"IFERROR(INDEX(Kursliste[],MATCH(SUMPRODUCT((Kursliste[TAG]=Kursplan[[#Headers],[DONNERSTAG]])*(ROUNDDOWN($B38,10)>=ROUNDDOWN(Kursliste[ANFANGSZEIT],10))*($B38<=Kursliste[ENDZEIT]),Kursliste[EINDEUTIG]),Kursliste[EINDEUTIG],0),2),0)","v":0},{"$f":"IFERROR(INDEX(Kursliste[],MATCH(SUMPRODUCT((Kursliste[TAG]=Kursplan[[#Headers],[FREITAG]])*(ROUNDDOWN($B38,10)>=ROUNDDOWN(Kursliste[ANFANGSZEIT],10))*($B38<=Kursliste[ENDZEIT]),Kursliste[EINDEUTIG]),Kursliste[EINDEUTIG],0),2),0)","v":0},{"$f":"IFERROR(INDEX(Kursliste[],MATCH(SUMPRODUCT((Kursliste[TAG]=Kursplan[[#Headers],[SAMSTAG]])*(ROUNDDOWN($B38,10)>=ROUNDDOWN(Kursliste[ANFANGSZEIT],10))*($B38<=Kursliste[ENDZEIT]),Kursliste[EINDEUTIG]),Kursliste[EINDEUTIG],0),2),0)","v":0}]
[null,"16:45:00",{"$f":"IFERROR(INDEX(Kursliste[],MATCH(SUMPRODUCT((Kursliste[TAG]=Kursplan[[#Headers],[SONNTAG]])*(ROUNDDOWN($B39,10)>=ROUNDDOWN(Kursliste[ANFANGSZEIT],10))*($B39<=Kursliste[ENDZEIT]),Kursliste[EINDEUTIG]),Kursliste[EINDEUTIG],0),2),0)","v":0},{"$f":"IFERROR(INDEX(Kursliste[],MATCH(SUMPRODUCT((Kursliste[TAG]=Kursplan[[#Headers],[MONTAG]])*(ROUNDDOWN($B39,10)>=ROUNDDOWN(Kursliste[ANFANGSZEIT],10))*($B39<=Kursliste[ENDZEIT]),Kursliste[EINDEUTIG]),Kursliste[EINDEUTIG],0),2),0)","v":"SP-111"},{"$f":"IFERROR(INDEX(Kursliste[],MATCH(SUMPRODUCT((Kursliste[TAG]=Kursplan[[#Headers],[DIENSTAG]])*(ROUNDDOWN($B39,10)>=ROUNDDOWN(Kursliste[ANFANGSZEIT],10))*($B39<=Kursliste[ENDZEIT]),Kursliste[EINDEUTIG]),Kursliste[EINDEUTIG],0),2),0)","v":0},{"$f":"IFERROR(INDEX(Kursliste[],MATCH(SUMPRODUCT((Kursliste[TAG]=Kursplan[[#Headers],[MITTWOCH]])*(ROUNDDOWN($B39,10)>=ROUNDDOWN(Kursliste[ANFANGSZEIT],10))*($B39<=Kursliste[ENDZEIT]),Kursliste[EINDEUTIG]),Kursliste[EINDEUTIG],0),2),0)","v":0},{"$f":"IFERROR(INDEX(Kursliste[],MATCH(SUMPRODUCT((Kursliste[TAG]=Kursplan[[#Headers],[DONNERSTAG]])*(ROUNDDOWN($B39,10)>=ROUNDDOWN(Kursliste[ANFANGSZEIT],10))*($B39<=Kursliste[ENDZEIT]),Kursliste[EINDEUTIG]),Kursliste[EINDEUTIG],0),2),0)","v":0},{"$f":"IFERROR(INDEX(Kursliste[],MATCH(SUMPRODUCT((Kursliste[TAG]=Kursplan[[#Headers],[FREITAG]])*(ROUNDDOWN($B39,10)>=ROUNDDOWN(Kursliste[ANFANGSZEIT],10))*($B39<=Kursliste[ENDZEIT]),Kursliste[EINDEUTIG]),Kursliste[EINDEUTIG],0),2),0)","v":0},{"$f":"IFERROR(INDEX(Kursliste[],MATCH(SUMPRODUCT((Kursliste[TAG]=Kursplan[[#Headers],[SAMSTAG]])*(ROUNDDOWN($B39,10)>=ROUNDDOWN(Kursliste[ANFANGSZEIT],10))*($B39<=Kursliste[ENDZEIT]),Kursliste[EINDEUTIG]),Kursliste[EINDEUTIG],0),2),0)","v":0}]
[null,"17:00:00",{"$f":"IFERROR(INDEX(Kursliste[],MATCH(SUMPRODUCT((Kursliste[TAG]=Kursplan[[#Headers],[SONNTAG]])*(ROUNDDOWN($B40,10)>=ROUNDDOWN(Kursliste[ANFANGSZEIT],10))*($B40<=Kursliste[ENDZEIT]),Kursliste[EINDEUTIG]),Kursliste[EINDEUTIG],0),2),0)","v":0},{"$f":"IFERROR(INDEX(Kursliste[],MATCH(SUMPRODUCT((Kursliste[TAG]=Kursplan[[#Headers],[MONTAG]])*(ROUNDDOWN($B40,10)>=ROUNDDOWN(Kursliste[ANFANGSZEIT],10))*($B40<=Kursliste[ENDZEIT]),Kursliste[EINDEUTIG]),Kursliste[EINDEUTIG],0),2),0)","v":"SP-111"},{"$f":"IFERROR(INDEX(Kursliste[],MATCH(SUMPRODUCT((Kursliste[TAG]=Kursplan[[#Headers],[DIENSTAG]])*(ROUNDDOWN($B40,10)>=ROUNDDOWN(Kursliste[ANFANGSZEIT],10))*($B40<=Kursliste[ENDZEIT]),Kursliste[EINDEUTIG]),Kursliste[EINDEUTIG],0),2),0)","v":0},{"$f":"IFERROR(INDEX(Kursliste[],MATCH(SUMPRODUCT((Kursliste[TAG]=Kursplan[[#Headers],[MITTWOCH]])*(ROUNDDOWN($B40,10)>=ROUNDDOWN(Kursliste[ANFANGSZEIT],10))*($B40<=Kursliste[ENDZEIT]),Kursliste[EINDEUTIG]),Kursliste[EINDEUTIG],0),2),0)","v":0},{"$f":"IFERROR(INDEX(Kursliste[],MATCH(SUMPRODUCT((Kursliste[TAG]=Kursplan[[#Headers],[DONNERSTAG]])*(ROUNDDOWN($B40,10)>=ROUNDDOWN(Kursliste[ANFANGSZEIT],10))*($B40<=Kursliste[ENDZEIT]),Kursliste[EINDEUTIG]),Kursliste[EINDEUTIG],0),2),0)","v":0},{"$f":"IFERROR(INDEX(Kursliste[],MATCH(SUMPRODUCT((Kursliste[TAG]=Kursplan[[#Headers],[FREITAG]])*(ROUNDDOWN($B40,10)>=ROUNDDOWN(Kursliste[ANFANGSZEIT],10))*($B40<=Kursliste[ENDZEIT]),Kursliste[EINDEUTIG]),Kursliste[EINDEUTIG],0),2),0)","v":0},{"$f":"IFERROR(INDEX(Kursliste[],MATCH(SUMPRODUCT((Kursliste[TAG]=Kursplan[[#Headers],[SAMSTAG]])*(ROUNDDOWN($B40,10)>=ROUNDDOWN(Kursliste[ANFANGSZEIT],10))*($B40<=Kursliste[ENDZEIT]),Kursliste[EINDEUTIG]),Kursliste[EINDEUTIG],0),2),0)","v":0}]
[null,"17:15:00",{"$f":"IFERROR(INDEX(Kursliste[],MATCH(SUMPRODUCT((Kursliste[TAG]=Kursplan[[#Headers],[SONNTAG]])*(ROUNDDOWN($B41,10)>=ROUNDDOWN(Kursliste[ANFANGSZEIT],10))*($B41<=Kursliste[ENDZEIT]),Kursliste[EINDEUTIG]),Kursliste[EINDEUTIG],0),2),0)","v":0},{"$f":"IFERROR(INDEX(Kursliste[],MATCH(SUMPRODUCT((Kursliste[TAG]=Kursplan[[#Headers],[MONTAG]])*(ROUNDDOWN($B41,10)>=ROUNDDOWN(Kursliste[ANFANGSZEIT],10))*($B41<=Kursliste[ENDZEIT]),Kursliste[EINDEUTIG]),Kursliste[EINDEUTIG],0),2),0)","v":0},{"$f":"IFERROR(INDEX(Kursliste[],MATCH(SUMPRODUCT((Kursliste[TAG]=Kursplan[[#Headers],[DIENSTAG]])*(ROUNDDOWN($B41,10)>=ROUNDDOWN(Kursliste[ANFANGSZEIT],10))*($B41<=Kursliste[ENDZEIT]),Kursliste[EINDEUTIG]),Kursliste[EINDEUTIG],0),2),0)","v":0},{"$f":"IFERROR(INDEX(Kursliste[],MATCH(SUMPRODUCT((Kursliste[TAG]=Kursplan[[#Headers],[MITTWOCH]])*(ROUNDDOWN($B41,10)>=ROUNDDOWN(Kursliste[ANFANGSZEIT],10))*($B41<=Kursliste[ENDZEIT]),Kursliste[EINDEUTIG]),Kursliste[EINDEUTIG],0),2),0)","v":0},{"$f":"IFERROR(INDEX(Kursliste[],MATCH(SUMPRODUCT((Kursliste[TAG]=Kursplan[[#Headers],[DONNERSTAG]])*(ROUNDDOWN($B41,10)>=ROUNDDOWN(Kursliste[ANFANGSZEIT],10))*($B41<=Kursliste[ENDZEIT]),Kursliste[EINDEUTIG]),Kursliste[EINDEUTIG],0),2),0)","v":0},{"$f":"IFERROR(INDEX(Kursliste[],MATCH(SUMPRODUCT((Kursliste[TAG]=Kursplan[[#Headers],[FREITAG]])*(ROUNDDOWN($B41,10)>=ROUNDDOWN(Kursliste[ANFANGSZEIT],10))*($B41<=Kursliste[ENDZEIT]),Kursliste[EINDEUTIG]),Kursliste[EINDEUTIG],0),2),0)","v":0},{"$f":"IFERROR(INDEX(Kursliste[],MATCH(SUMPRODUCT((Kursliste[TAG]=Kursplan[[#Headers],[SAMSTAG]])*(ROUNDDOWN($B41,10)>=ROUNDDOWN(Kursliste[ANFANGSZEIT],10))*($B41<=Kursliste[ENDZEIT]),Kursliste[EINDEUTIG]),Kursliste[EINDEUTIG],0),2),0)","v":0}]
[null,"17:30:00",{"$f":"IFERROR(INDEX(Kursliste[],MATCH(SUMPRODUCT((Kursliste[TAG]=Kursplan[[#Headers],[SONNTAG]])*(ROUNDDOWN($B42,10)>=ROUNDDOWN(Kursliste[ANFANGSZEIT],10))*($B42<=Kursliste[ENDZEIT]),Kursliste[EINDEUTIG]),Kursliste[EINDEUTIG],0),2),0)","v":0},{"$f":"IFERROR(INDEX(Kursliste[],MATCH(SUMPRODUCT((Kursliste[TAG]=Kursplan[[#Headers],[MONTAG]])*(ROUNDDOWN($B42,10)>=ROUNDDOWN(Kursliste[ANFANGSZEIT],10))*($B42<=Kursliste[ENDZEIT]),Kursliste[EINDEUTIG]),Kursliste[EINDEUTIG],0),2),0)","v":0},{"$f":"IFERROR(INDEX(Kursliste[],MATCH(SUMPRODUCT((Kursliste[TAG]=Kursplan[[#Headers],[DIENSTAG]])*(ROUNDDOWN($B42,10)>=ROUNDDOWN(Kursliste[ANFANGSZEIT],10))*($B42<=Kursliste[ENDZEIT]),Kursliste[EINDEUTIG]),Kursliste[EINDEUTIG],0),2),0)","v":0},{"$f":"IFERROR(INDEX(Kursliste[],MATCH(SUMPRODUCT((Kursliste[TAG]=Kursplan[[#Headers],[MITTWOCH]])*(ROUNDDOWN($B42,10)>=ROUNDDOWN(Kursliste[ANFANGSZEIT],10))*($B42<=Kursliste[ENDZEIT]),Kursliste[EINDEUTIG]),Kursliste[EINDEUTIG],0),2),0)","v":0},{"$f":"IFERROR(INDEX(Kursliste[],MATCH(SUMPRODUCT((Kursliste[TAG]=Kursplan[[#Headers],[DONNERSTAG]])*(ROUNDDOWN($B42,10)>=ROUNDDOWN(Kursliste[ANFANGSZEIT],10))*($B42<=Kursliste[ENDZEIT]),Kursliste[EINDEUTIG]),Kursliste[EINDEUTIG],0),2),0)","v":0},{"$f":"IFERROR(INDEX(Kursliste[],MATCH(SUMPRODUCT((Kursliste[TAG]=Kursplan[[#Headers],[FREITAG]])*(ROUNDDOWN($B42,10)>=ROUNDDOWN(Kursliste[ANFANGSZEIT],10))*($B42<=Kursliste[ENDZEIT]),Kursliste[EINDEUTIG]),Kursliste[EINDEUTIG],0),2),0)","v":0},{"$f":"IFERROR(INDEX(Kursliste[],MATCH(SUMPRODUCT((Kursliste[TAG]=Kursplan[[#Headers],[SAMSTAG]])*(ROUNDDOWN($B42,10)>=ROUNDDOWN(Kursliste[ANFANGSZEIT],10))*($B42<=Kursliste[ENDZEIT]),Kursliste[EINDEUTIG]),Kursliste[EINDEUTIG],0),2),0)","v":0}]
[null,"17:45:00",{"$f":"IFERROR(INDEX(Kursliste[],MATCH(SUMPRODUCT((Kursliste[TAG]=Kursplan[[#Headers],[SONNTAG]])*(ROUNDDOWN($B43,10)>=ROUNDDOWN(Kursliste[ANFANGSZEIT],10))*($B43<=Kursliste[ENDZEIT]),Kursliste[EINDEUTIG]),Kursliste[EINDEUTIG],0),2),0)","v":0},{"$f":"IFERROR(INDEX(Kursliste[],MATCH(SUMPRODUCT((Kursliste[TAG]=Kursplan[[#Headers],[MONTAG]])*(ROUNDDOWN($B43,10)>=ROUNDDOWN(Kursliste[ANFANGSZEIT],10))*($B43<=Kursliste[ENDZEIT]),Kursliste[EINDEUTIG]),Kursliste[EINDEUTIG],0),2),0)","v":0},{"$f":"IFERROR(INDEX(Kursliste[],MATCH(SUMPRODUCT((Kursliste[TAG]=Kursplan[[#Headers],[DIENSTAG]])*(ROUNDDOWN($B43,10)>=ROUNDDOWN(Kursliste[ANFANGSZEIT],10))*($B43<=Kursliste[ENDZEIT]),Kursliste[EINDEUTIG]),Kursliste[EINDEUTIG],0),2),0)","v":0},{"$f":"IFERROR(INDEX(Kursliste[],MATCH(SUMPRODUCT((Kursliste[TAG]=Kursplan[[#Headers],[MITTWOCH]])*(ROUNDDOWN($B43,10)>=ROUNDDOWN(Kursliste[ANFANGSZEIT],10))*($B43<=Kursliste[ENDZEIT]),Kursliste[EINDEUTIG]),Kursliste[EINDEUTIG],0),2),0)","v":0},{"$f":"IFERROR(INDEX(Kursliste[],MATCH(SUMPRODUCT((Kursliste[TAG]=Kursplan[[#Headers],[DONNERSTAG]])*(ROUNDDOWN($B43,10)>=ROUNDDOWN(Kursliste[ANFANGSZEIT],10))*($B43<=Kursliste[ENDZEIT]),Kursliste[EINDEUTIG]),Kursliste[EINDEUTIG],0),2),0)","v":0},{"$f":"IFERROR(INDEX(Kursliste[],MATCH(SUMPRODUCT((Kursliste[TAG]=Kursplan[[#Headers],[FREITAG]])*(ROUNDDOWN($B43,10)>=ROUNDDOWN(Kursliste[ANFANGSZEIT],10))*($B43<=Kursliste[ENDZEIT]),Kursliste[EINDEUTIG]),Kursliste[EINDEUTIG],0),2),0)","v":0},{"$f":"IFERROR(INDEX(Kursliste[],MATCH(SUMPRODUCT((Kursliste[TAG]=Kursplan[[#Headers],[SAMSTAG]])*(ROUNDDOWN($B43,10)>=ROUNDDOWN(Kursliste[ANFANGSZEIT],10))*($B43<=Kursliste[ENDZEIT]),Kursliste[EINDEUTIG]),Kursliste[EINDEUTIG],0),2),0)","v":0}]
[null,"18:00:00",{"$f":"IFERROR(INDEX(Kursliste[],MATCH(SUMPRODUCT((Kursliste[TAG]=Kursplan[[#Headers],[SONNTAG]])*(ROUNDDOWN($B44,10)>=ROUNDDOWN(Kursliste[ANFANGSZEIT],10))*($B44<=Kursliste[ENDZEIT]),Kursliste[EINDEUTIG]),Kursliste[EINDEUTIG],0),2),0)","v":0},{"$f":"IFERROR(INDEX(Kursliste[],MATCH(SUMPRODUCT((Kursliste[TAG]=Kursplan[[#Headers],[MONTAG]])*(ROUNDDOWN($B44,10)>=ROUNDDOWN(Kursliste[ANFANGSZEIT],10))*($B44<=Kursliste[ENDZEIT]),Kursliste[EINDEUTIG]),Kursliste[EINDEUTIG],0),2),0)","v":0},{"$f":"IFERROR(INDEX(Kursliste[],MATCH(SUMPRODUCT((Kursliste[TAG]=Kursplan[[#Headers],[DIENSTAG]])*(ROUNDDOWN($B44,10)>=ROUNDDOWN(Kursliste[ANFANGSZEIT],10))*($B44<=Kursliste[ENDZEIT]),Kursliste[EINDEUTIG]),Kursliste[EINDEUTIG],0),2),0)","v":0},{"$f":"IFERROR(INDEX(Kursliste[],MATCH(SUMPRODUCT((Kursliste[TAG]=Kursplan[[#Headers],[MITTWOCH]])*(ROUNDDOWN($B44,10)>=ROUNDDOWN(Kursliste[ANFANGSZEIT],10))*($B44<=Kursliste[ENDZEIT]),Kursliste[EINDEUTIG]),Kursliste[EINDEUTIG],0),2),0)","v":0},{"$f":"IFERROR(INDEX(Kursliste[],MATCH(SUMPRODUCT((Kursliste[TAG]=Kursplan[[#Headers],[DONNERSTAG]])*(ROUNDDOWN($B44,10)>=ROUNDDOWN(Kursliste[ANFANGSZEIT],10))*($B44<=Kursliste[ENDZEIT]),Kursliste[EINDEUTIG]),Kursliste[EINDEUTIG],0),2),0)","v":0},{"$f":"IFERROR(INDEX(Kursliste[],MATCH(SUMPRODUCT((Kursliste[TAG]=Kursplan[[#Headers],[FREITAG]])*(ROUNDDOWN($B44,10)>=ROUNDDOWN(Kursliste[ANFANGSZEIT],10))*($B44<=Kursliste[ENDZEIT]),Kursliste[EINDEUTIG]),Kursliste[EINDEUTIG],0),2),0)","v":0},{"$f":"IFERROR(INDEX(Kursliste[],MATCH(SUMPRODUCT((Kursliste[TAG]=Kursplan[[#Headers],[SAMSTAG]])*(ROUNDDOWN($B44,10)>=ROUNDDOWN(Kursliste[ANFANGSZEIT],10))*($B44<=Kursliste[ENDZEIT]),Kursliste[EINDEUTIG]),Kursliste[EINDEUTIG],0),2),0)","v":0}]
[null,"18:15:00",{"$f":"IFERROR(INDEX(Kursliste[],MATCH(SUMPRODUCT((Kursliste[TAG]=Kursplan[[#Headers],[SONNTAG]])*(ROUNDDOWN($B45,10)>=ROUNDDOWN(Kursliste[ANFANGSZEIT],10))*($B45<=Kursliste[ENDZEIT]),Kursliste[EINDEUTIG]),Kursliste[EINDEUTIG],0),2),0)","v":0},{"$f":"IFERROR(INDEX(Kursliste[],MATCH(SUMPRODUCT((Kursliste[TAG]=Kursplan[[#Headers],[MONTAG]])*(ROUNDDOWN($B45,10)>=ROUNDDOWN(Kursliste[ANFANGSZEIT],10))*($B45<=Kursliste[ENDZEIT]),Kursliste[EINDEUTIG]),Kursliste[EINDEUTIG],0),2),0)","v":0},{"$f":"IFERROR(INDEX(Kursliste[],MATCH(SUMPRODUCT((Kursliste[TAG]=Kursplan[[#Headers],[DIENSTAG]])*(ROUNDDOWN($B45,10)>=ROUNDDOWN(Kursliste[ANFANGSZEIT],10))*($B45<=Kursliste[ENDZEIT]),Kursliste[EINDEUTIG]),Kursliste[EINDEUTIG],0),2),0)","v":0},{"$f":"IFERROR(INDEX(Kursliste[],MATCH(SUMPRODUCT((Kursliste[TAG]=Kursplan[[#Headers],[MITTWOCH]])*(ROUNDDOWN($B45,10)>=ROUNDDOWN(Kursliste[ANFANGSZEIT],10))*($B45<=Kursliste[ENDZEIT]),Kursliste[EINDEUTIG]),Kursliste[EINDEUTIG],0),2),0)","v":0},{"$f":"IFERROR(INDEX(Kursliste[],MATCH(SUMPRODUCT((Kursliste[TAG]=Kursplan[[#Headers],[DONNERSTAG]])*(ROUNDDOWN($B45,10)>=ROUNDDOWN(Kursliste[ANFANGSZEIT],10))*($B45<=Kursliste[ENDZEIT]),Kursliste[EINDEUTIG]),Kursliste[EINDEUTIG],0),2),0)","v":0},{"$f":"IFERROR(INDEX(Kursliste[],MATCH(SUMPRODUCT((Kursliste[TAG]=Kursplan[[#Headers],[FREITAG]])*(ROUNDDOWN($B45,10)>=ROUNDDOWN(Kursliste[ANFANGSZEIT],10))*($B45<=Kursliste[ENDZEIT]),Kursliste[EINDEUTIG]),Kursliste[EINDEUTIG],0),2),0)","v":0},{"$f":"IFERROR(INDEX(Kursliste[],MATCH(SUMPRODUCT((Kursliste[TAG]=Kursplan[[#Headers],[SAMSTAG]])*(ROUNDDOWN($B45,10)>=ROUNDDOWN(Kursliste[ANFANGSZEIT],10))*($B45<=Kursliste[ENDZEIT]),Kursliste[EINDEUTIG]),Kursliste[EINDEUTIG],0),2),0)","v":0}]
[null,"18:30:00",{"$f":"IFERROR(INDEX(Kursliste[],MATCH(SUMPRODUCT((Kursliste[TAG]=Kursplan[[#Headers],[SONNTAG]])*(ROUNDDOWN($B46,10)>=ROUNDDOWN(Kursliste[ANFANGSZEIT],10))*($B46<=Kursliste[ENDZEIT]),Kursliste[EINDEUTIG]),Kursliste[EINDEUTIG],0),2),0)","v":0},{"$f":"IFERROR(INDEX(Kursliste[],MATCH(SUMPRODUCT((Kursliste[TAG]=Kursplan[[#Headers],[MONTAG]])*(ROUNDDOWN($B46,10)>=ROUNDDOWN(Kursliste[ANFANGSZEIT],10))*($B46<=Kursliste[ENDZEIT]),Kursliste[EINDEUTIG]),Kursliste[EINDEUTIG],0),2),0)","v":0},{"$f":"IFERROR(INDEX(Kursliste[],MATCH(SUMPRODUCT((Kursliste[TAG]=Kursplan[[#Headers],[DIENSTAG]])*(ROUNDDOWN($B46,10)>=ROUNDDOWN(Kursliste[ANFANGSZEIT],10))*($B46<=Kursliste[ENDZEIT]),Kursliste[EINDEUTIG]),Kursliste[EINDEUTIG],0),2),0)","v":0},{"$f":"IFERROR(INDEX(Kursliste[],MATCH(SUMPRODUCT((Kursliste[TAG]=Kursplan[[#Headers],[MITTWOCH]])*(ROUNDDOWN($B46,10)>=ROUNDDOWN(Kursliste[ANFANGSZEIT],10))*($B46<=Kursliste[ENDZEIT]),Kursliste[EINDEUTIG]),Kursliste[EINDEUTIG],0),2),0)","v":0},{"$f":"IFERROR(INDEX(Kursliste[],MATCH(SUMPRODUCT((Kursliste[TAG]=Kursplan[[#Headers],[DONNERSTAG]])*(ROUNDDOWN($B46,10)>=ROUNDDOWN(Kursliste[ANFANGSZEIT],10))*($B46<=Kursliste[ENDZEIT]),Kursliste[EINDEUTIG]),Kursliste[EINDEUTIG],0),2),0)","v":0},{"$f":"IFERROR(INDEX(Kursliste[],MATCH(SUMPRODUCT((Kursliste[TAG]=Kursplan[[#Headers],[FREITAG]])*(ROUNDDOWN($B46,10)>=ROUNDDOWN(Kursliste[ANFANGSZEIT],10))*($B46<=Kursliste[ENDZEIT]),Kursliste[EINDEUTIG]),Kursliste[EINDEUTIG],0),2),0)","v":0},{"$f":"IFERROR(INDEX(Kursliste[],MATCH(SUMPRODUCT((Kursliste[TAG]=Kursplan[[#Headers],[SAMSTAG]])*(ROUNDDOWN($B46,10)>=ROUNDDOWN(Kursliste[ANFANGSZEIT],10))*($B46<=Kursliste[ENDZEIT]),Kursliste[EINDEUTIG]),Kursliste[EINDEUTIG],0),2),0)","v":0}]
[null,"18:45:00",{"$f":"IFERROR(INDEX(Kursliste[],MATCH(SUMPRODUCT((Kursliste[TAG]=Kursplan[[#Headers],[SONNTAG]])*(ROUNDDOWN($B47,10)>=ROUNDDOWN(Kursliste[ANFANGSZEIT],10))*($B47<=Kursliste[ENDZEIT]),Kursliste[EINDEUTIG]),Kursliste[EINDEUTIG],0),2),0)","v":0},{"$f":"IFERROR(INDEX(Kursliste[],MATCH(SUMPRODUCT((Kursliste[TAG]=Kursplan[[#Headers],[MONTAG]])*(ROUNDDOWN($B47,10)>=ROUNDDOWN(Kursliste[ANFANGSZEIT],10))*($B47<=Kursliste[ENDZEIT]),Kursliste[EINDEUTIG]),Kursliste[EINDEUTIG],0),2),0)","v":0},{"$f":"IFERROR(INDEX(Kursliste[],MATCH(SUMPRODUCT((Kursliste[TAG]=Kursplan[[#Headers],[DIENSTAG]])*(ROUNDDOWN($B47,10)>=ROUNDDOWN(Kursliste[ANFANGSZEIT],10))*($B47<=Kursliste[ENDZEIT]),Kursliste[EINDEUTIG]),Kursliste[EINDEUTIG],0),2),0)","v":0},{"$f":"IFERROR(INDEX(Kursliste[],MATCH(SUMPRODUCT((Kursliste[TAG]=Kursplan[[#Headers],[MITTWOCH]])*(ROUNDDOWN($B47,10)>=ROUNDDOWN(Kursliste[ANFANGSZEIT],10))*($B47<=Kursliste[ENDZEIT]),Kursliste[EINDEUTIG]),Kursliste[EINDEUTIG],0),2),0)","v":0},{"$f":"IFERROR(INDEX(Kursliste[],MATCH(SUMPRODUCT((Kursliste[TAG]=Kursplan[[#Headers],[DONNERSTAG]])*(ROUNDDOWN($B47,10)>=ROUNDDOWN(Kursliste[ANFANGSZEIT],10))*($B47<=Kursliste[ENDZEIT]),Kursliste[EINDEUTIG]),Kursliste[EINDEUTIG],0),2),0)","v":0},{"$f":"IFERROR(INDEX(Kursliste[],MATCH(SUMPRODUCT((Kursliste[TAG]=Kursplan[[#Headers],[FREITAG]])*(ROUNDDOWN($B47,10)>=ROUNDDOWN(Kursliste[ANFANGSZEIT],10))*($B47<=Kursliste[ENDZEIT]),Kursliste[EINDEUTIG]),Kursliste[EINDEUTIG],0),2),0)","v":0},{"$f":"IFERROR(INDEX(Kursliste[],MATCH(SUMPRODUCT((Kursliste[TAG]=Kursplan[[#Headers],[SAMSTAG]])*(ROUNDDOWN($B47,10)>=ROUNDDOWN(Kursliste[ANFANGSZEIT],10))*($B47<=Kursliste[ENDZEIT]),Kursliste[EINDEUTIG]),Kursliste[EINDEUTIG],0),2),0)","v":0}]
[null,"19:00:00",{"$f":"IFERROR(INDEX(Kursliste[],MATCH(SUMPRODUCT((Kursliste[TAG]=Kursplan[[#Headers],[SONNTAG]])*(ROUNDDOWN($B48,10)>=ROUNDDOWN(Kursliste[ANFANGSZEIT],10))*($B48<=Kursliste[ENDZEIT]),Kursliste[EINDEUTIG]),Kursliste[EINDEUTIG],0),2),0)","v":0},{"$f":"IFERROR(INDEX(Kursliste[],MATCH(SUMPRODUCT((Kursliste[TAG]=Kursplan[[#Headers],[MONTAG]])*(ROUNDDOWN($B48,10)>=ROUNDDOWN(Kursliste[ANFANGSZEIT],10))*($B48<=Kursliste[ENDZEIT]),Kursliste[EINDEUTIG]),Kursliste[EINDEUTIG],0),2),0)","v":0},{"$f":"IFERROR(INDEX(Kursliste[],MATCH(SUMPRODUCT((Kursliste[TAG]=Kursplan[[#Headers],[DIENSTAG]])*(ROUNDDOWN($B48,10)>=ROUNDDOWN(Kursliste[ANFANGSZEIT],10))*($B48<=Kursliste[ENDZEIT]),Kursliste[EINDEUTIG]),Kursliste[EINDEUTIG],0),2),0)","v":0},{"$f":"IFERROR(INDEX(Kursliste[],MATCH(SUMPRODUCT((Kursliste[TAG]=Kursplan[[#Headers],[MITTWOCH]])*(ROUNDDOWN($B48,10)>=ROUNDDOWN(Kursliste[ANFANGSZEIT],10))*($B48<=Kursliste[ENDZEIT]),Kursliste[EINDEUTIG]),Kursliste[EINDEUTIG],0),2),0)","v":0},{"$f":"IFERROR(INDEX(Kursliste[],MATCH(SUMPRODUCT((Kursliste[TAG]=Kursplan[[#Headers],[DONNERSTAG]])*(ROUNDDOWN($B48,10)>=ROUNDDOWN(Kursliste[ANFANGSZEIT],10))*($B48<=Kursliste[ENDZEIT]),Kursliste[EINDEUTIG]),Kursliste[EINDEUTIG],0),2),0)","v":0},{"$f":"IFERROR(INDEX(Kursliste[],MATCH(SUMPRODUCT((Kursliste[TAG]=Kursplan[[#Headers],[FREITAG]])*(ROUNDDOWN($B48,10)>=ROUNDDOWN(Kursliste[ANFANGSZEIT],10))*($B48<=Kursliste[ENDZEIT]),Kursliste[EINDEUTIG]),Kursliste[EINDEUTIG],0),2),0)","v":0},{"$f":"IFERROR(INDEX(Kursliste[],MATCH(SUMPRODUCT((Kursliste[TAG]=Kursplan[[#Headers],[SAMSTAG]])*(ROUNDDOWN($B48,10)>=ROUNDDOWN(Kursliste[ANFANGSZEIT],10))*($B48<=Kursliste[ENDZEIT]),Kursliste[EINDEUTIG]),Kursliste[EINDEUTIG],0),2),0)","v":0}]
[null,"19:15:00",{"$f":"IFERROR(INDEX(Kursliste[],MATCH(SUMPRODUCT((Kursliste[TAG]=Kursplan[[#Headers],[SONNTAG]])*(ROUNDDOWN($B49,10)>=ROUNDDOWN(Kursliste[ANFANGSZEIT],10))*($B49<=Kursliste[ENDZEIT]),Kursliste[EINDEUTIG]),Kursliste[EINDEUTIG],0),2),0)","v":0},{"$f":"IFERROR(INDEX(Kursliste[],MATCH(SUMPRODUCT((Kursliste[TAG]=Kursplan[[#Headers],[MONTAG]])*(ROUNDDOWN($B49,10)>=ROUNDDOWN(Kursliste[ANFANGSZEIT],10))*($B49<=Kursliste[ENDZEIT]),Kursliste[EINDEUTIG]),Kursliste[EINDEUTIG],0),2),0)","v":0},{"$f":"IFERROR(INDEX(Kursliste[],MATCH(SUMPRODUCT((Kursliste[TAG]=Kursplan[[#Headers],[DIENSTAG]])*(ROUNDDOWN($B49,10)>=ROUNDDOWN(Kursliste[ANFANGSZEIT],10))*($B49<=Kursliste[ENDZEIT]),Kursliste[EINDEUTIG]),Kursliste[EINDEUTIG],0),2),0)","v":0},{"$f":"IFERROR(INDEX(Kursliste[],MATCH(SUMPRODUCT((Kursliste[TAG]=Kursplan[[#Headers],[MITTWOCH]])*(ROUNDDOWN($B49,10)>=ROUNDDOWN(Kursliste[ANFANGSZEIT],10))*($B49<=Kursliste[ENDZEIT]),Kursliste[EINDEUTIG]),Kursliste[EINDEUTIG],0),2),0)","v":0},{"$f":"IFERROR(INDEX(Kursliste[],MATCH(SUMPRODUCT((Kursliste[TAG]=Kursplan[[#Headers],[DONNERSTAG]])*(ROUNDDOWN($B49,10)>=ROUNDDOWN(Kursliste[ANFANGSZEIT],10))*($B49<=Kursliste[ENDZEIT]),Kursliste[EINDEUTIG]),Kursliste[EINDEUTIG],0),2),0)","v":0},{"$f":"IFERROR(INDEX(Kursliste[],MATCH(SUMPRODUCT((Kursliste[TAG]=Kursplan[[#Headers],[FREITAG]])*(ROUNDDOWN($B49,10)>=ROUNDDOWN(Kursliste[ANFANGSZEIT],10))*($B49<=Kursliste[ENDZEIT]),Kursliste[EINDEUTIG]),Kursliste[EINDEUTIG],0),2),0)","v":0},{"$f":"IFERROR(INDEX(Kursliste[],MATCH(SUMPRODUCT((Kursliste[TAG]=Kursplan[[#Headers],[SAMSTAG]])*(ROUNDDOWN($B49,10)>=ROUNDDOWN(Kursliste[ANFANGSZEIT],10))*($B49<=Kursliste[ENDZEIT]),Kursliste[EINDEUTIG]),Kursliste[EINDEUTIG],0),2),0)","v":0}]
[null,"19:30:00",{"$f":"IFERROR(INDEX(Kursliste[],MATCH(SUMPRODUCT((Kursliste[TAG]=Kursplan[[#Headers],[SONNTAG]])*(ROUNDDOWN($B50,10)>=ROUNDDOWN(Kursliste[ANFANGSZEIT],10))*($B50<=Kursliste[ENDZEIT]),Kursliste[EINDEUTIG]),Kursliste[EINDEUTIG],0),2),0)","v":0},{"$f":"IFERROR(INDEX(Kursliste[],MATCH(SUMPRODUCT((Kursliste[TAG]=Kursplan[[#Headers],[MONTAG]])*(ROUNDDOWN($B50,10)>=ROUNDDOWN(Kursliste[ANFANGSZEIT],10))*($B50<=Kursliste[ENDZEIT]),Kursliste[EINDEUTIG]),Kursliste[EINDEUTIG],0),2),0)","v":0},{"$f":"IFERROR(INDEX(Kursliste[],MATCH(SUMPRODUCT((Kursliste[TAG]=Kursplan[[#Headers],[DIENSTAG]])*(ROUNDDOWN($B50,10)>=ROUNDDOWN(Kursliste[ANFANGSZEIT],10))*($B50<=Kursliste[ENDZEIT]),Kursliste[EINDEUTIG]),Kursliste[EINDEUTIG],0),2),0)","v":0},{"$f":"IFERROR(INDEX(Kursliste[],MATCH(SUMPRODUCT((Kursliste[TAG]=Kursplan[[#Headers],[MITTWOCH]])*(ROUNDDOWN($B50,10)>=ROUNDDOWN(Kursliste[ANFANGSZEIT],10))*($B50<=Kursliste[ENDZEIT]),Kursliste[EINDEUTIG]),Kursliste[EINDEUTIG],0),2),0)","v":0},{"$f":"IFERROR(INDEX(Kursliste[],MATCH(SUMPRODUCT((Kursliste[TAG]=Kursplan[[#Headers],[DONNERSTAG]])*(ROUNDDOWN($B50,10)>=ROUNDDOWN(Kursliste[ANFANGSZEIT],10))*($B50<=Kursliste[ENDZEIT]),Kursliste[EINDEUTIG]),Kursliste[EINDEUTIG],0),2),0)","v":0},{"$f":"IFERROR(INDEX(Kursliste[],MATCH(SUMPRODUCT((Kursliste[TAG]=Kursplan[[#Headers],[FREITAG]])*(ROUNDDOWN($B50,10)>=ROUNDDOWN(Kursliste[ANFANGSZEIT],10))*($B50<=Kursliste[ENDZEIT]),Kursliste[EINDEUTIG]),Kursliste[EINDEUTIG],0),2),0)","v":0},{"$f":"IFERROR(INDEX(Kursliste[],MATCH(SUMPRODUCT((Kursliste[TAG]=Kursplan[[#Headers],[SAMSTAG]])*(ROUNDDOWN($B50,10)>=ROUNDDOWN(Kursliste[ANFANGSZEIT],10))*($B50<=Kursliste[ENDZEIT]),Kursliste[EINDEUTIG]),Kursliste[EINDEUTIG],0),2),0)","v":0}]
[null,"19:45:00",{"$f":"IFERROR(INDEX(Kursliste[],MATCH(SUMPRODUCT((Kursliste[TAG]=Kursplan[[#Headers],[SONNTAG]])*(ROUNDDOWN($B51,10)>=ROUNDDOWN(Kursliste[ANFANGSZEIT],10))*($B51<=Kursliste[ENDZEIT]),Kursliste[EINDEUTIG]),Kursliste[EINDEUTIG],0),2),0)","v":0},{"$f":"IFERROR(INDEX(Kursliste[],MATCH(SUMPRODUCT((Kursliste[TAG]=Kursplan[[#Headers],[MONTAG]])*(ROUNDDOWN($B51,10)>=ROUNDDOWN(Kursliste[ANFANGSZEIT],10))*($B51<=Kursliste[ENDZEIT]),Kursliste[EINDEUTIG]),Kursliste[EINDEUTIG],0),2),0)","v":0},{"$f":"IFERROR(INDEX(Kursliste[],MATCH(SUMPRODUCT((Kursliste[TAG]=Kursplan[[#Headers],[DIENSTAG]])*(ROUNDDOWN($B51,10)>=ROUNDDOWN(Kursliste[ANFANGSZEIT],10))*($B51<=Kursliste[ENDZEIT]),Kursliste[EINDEUTIG]),Kursliste[EINDEUTIG],0),2),0)","v":0},{"$f":"IFERROR(INDEX(Kursliste[],MATCH(SUMPRODUCT((Kursliste[TAG]=Kursplan[[#Headers],[MITTWOCH]])*(ROUNDDOWN($B51,10)>=ROUNDDOWN(Kursliste[ANFANGSZEIT],10))*($B51<=Kursliste[ENDZEIT]),Kursliste[EINDEUTIG]),Kursliste[EINDEUTIG],0),2),0)","v":0},{"$f":"IFERROR(INDEX(Kursliste[],MATCH(SUMPRODUCT((Kursliste[TAG]=Kursplan[[#Headers],[DONNERSTAG]])*(ROUNDDOWN($B51,10)>=ROUNDDOWN(Kursliste[ANFANGSZEIT],10))*($B51<=Kursliste[ENDZEIT]),Kursliste[EINDEUTIG]),Kursliste[EINDEUTIG],0),2),0)","v":0},{"$f":"IFERROR(INDEX(Kursliste[],MATCH(SUMPRODUCT((Kursliste[TAG]=Kursplan[[#Headers],[FREITAG]])*(ROUNDDOWN($B51,10)>=ROUNDDOWN(Kursliste[ANFANGSZEIT],10))*($B51<=Kursliste[ENDZEIT]),Kursliste[EINDEUTIG]),Kursliste[EINDEUTIG],0),2),0)","v":0},{"$f":"IFERROR(INDEX(Kursliste[],MATCH(SUMPRODUCT((Kursliste[TAG]=Kursplan[[#Headers],[SAMSTAG]])*(ROUNDDOWN($B51,10)>=ROUNDDOWN(Kursliste[ANFANGSZEIT],10))*($B51<=Kursliste[ENDZEIT]),Kursliste[EINDEUTIG]),Kursliste[EINDEUTIG],0),2),0)","v":0}]
[null,"20:00:00",{"$f":"IFERROR(INDEX(Kursliste[],MATCH(SUMPRODUCT((Kursliste[TAG]=Kursplan[[#Headers],[SONNTAG]])*(ROUNDDOWN($B52,10)>=ROUNDDOWN(Kursliste[ANFANGSZEIT],10))*($B52<=Kursliste[ENDZEIT]),Kursliste[EINDEUTIG]),Kursliste[EINDEUTIG],0),2),0)","v":0},{"$f":"IFERROR(INDEX(Kursliste[],MATCH(SUMPRODUCT((Kursliste[TAG]=Kursplan[[#Headers],[MONTAG]])*(ROUNDDOWN($B52,10)>=ROUNDDOWN(Kursliste[ANFANGSZEIT],10))*($B52<=Kursliste[ENDZEIT]),Kursliste[EINDEUTIG]),Kursliste[EINDEUTIG],0),2),0)","v":0},{"$f":"IFERROR(INDEX(Kursliste[],MATCH(SUMPRODUCT((Kursliste[TAG]=Kursplan[[#Headers],[DIENSTAG]])*(ROUNDDOWN($B52,10)>=ROUNDDOWN(Kursliste[ANFANGSZEIT],10))*($B52<=Kursliste[ENDZEIT]),Kursliste[EINDEUTIG]),Kursliste[EINDEUTIG],0),2),0)","v":0},{"$f":"IFERROR(INDEX(Kursliste[],MATCH(SUMPRODUCT((Kursliste[TAG]=Kursplan[[#Headers],[MITTWOCH]])*(ROUNDDOWN($B52,10)>=ROUNDDOWN(Kursliste[ANFANGSZEIT],10))*($B52<=Kursliste[ENDZEIT]),Kursliste[EINDEUTIG]),Kursliste[EINDEUTIG],0),2),0)","v":0},{"$f":"IFERROR(INDEX(Kursliste[],MATCH(SUMPRODUCT((Kursliste[TAG]=Kursplan[[#Headers],[DONNERSTAG]])*(ROUNDDOWN($B52,10)>=ROUNDDOWN(Kursliste[ANFANGSZEIT],10))*($B52<=Kursliste[ENDZEIT]),Kursliste[EINDEUTIG]),Kursliste[EINDEUTIG],0),2),0)","v":0},{"$f":"IFERROR(INDEX(Kursliste[],MATCH(SUMPRODUCT((Kursliste[TAG]=Kursplan[[#Headers],[FREITAG]])*(ROUNDDOWN($B52,10)>=ROUNDDOWN(Kursliste[ANFANGSZEIT],10))*($B52<=Kursliste[ENDZEIT]),Kursliste[EINDEUTIG]),Kursliste[EINDEUTIG],0),2),0)","v":0},{"$f":"IFERROR(INDEX(Kursliste[],MATCH(SUMPRODUCT((Kursliste[TAG]=Kursplan[[#Headers],[SAMSTAG]])*(ROUNDDOWN($B52,10)>=ROUNDDOWN(Kursliste[ANFANGSZEIT],10))*($B52<=Kursliste[ENDZEIT]),Kursliste[EINDEUTIG]),Kursliste[EINDEUTIG],0),2),0)","v":0}]
[null,"20:15:00",{"$f":"IFERROR(INDEX(Kursliste[],MATCH(SUMPRODUCT((Kursliste[TAG]=Kursplan[[#Headers],[SONNTAG]])*(ROUNDDOWN($B53,10)>=ROUNDDOWN(Kursliste[ANFANGSZEIT],10))*($B53<=Kursliste[ENDZEIT]),Kursliste[EINDEUTIG]),Kursliste[EINDEUTIG],0),2),0)","v":0},{"$f":"IFERROR(INDEX(Kursliste[],MATCH(SUMPRODUCT((Kursliste[TAG]=Kursplan[[#Headers],[MONTAG]])*(ROUNDDOWN($B53,10)>=ROUNDDOWN(Kursliste[ANFANGSZEIT],10))*($B53<=Kursliste[ENDZEIT]),Kursliste[EINDEUTIG]),Kursliste[EINDEUTIG],0),2),0)","v":0},{"$f":"IFERROR(INDEX(Kursliste[],MATCH(SUMPRODUCT((Kursliste[TAG]=Kursplan[[#Headers],[DIENSTAG]])*(ROUNDDOWN($B53,10)>=ROUNDDOWN(Kursliste[ANFANGSZEIT],10))*($B53<=Kursliste[ENDZEIT]),Kursliste[EINDEUTIG]),Kursliste[EINDEUTIG],0),2),0)","v":0},{"$f":"IFERROR(INDEX(Kursliste[],MATCH(SUMPRODUCT((Kursliste[TAG]=Kursplan[[#Headers],[MITTWOCH]])*(ROUNDDOWN($B53,10)>=ROUNDDOWN(Kursliste[ANFANGSZEIT],10))*($B53<=Kursliste[ENDZEIT]),Kursliste[EINDEUTIG]),Kursliste[EINDEUTIG],0),2),0)","v":0},{"$f":"IFERROR(INDEX(Kursliste[],MATCH(SUMPRODUCT((Kursliste[TAG]=Kursplan[[#Headers],[DONNERSTAG]])*(ROUNDDOWN($B53,10)>=ROUNDDOWN(Kursliste[ANFANGSZEIT],10))*($B53<=Kursliste[ENDZEIT]),Kursliste[EINDEUTIG]),Kursliste[EINDEUTIG],0),2),0)","v":0},{"$f":"IFERROR(INDEX(Kursliste[],MATCH(SUMPRODUCT((Kursliste[TAG]=Kursplan[[#Headers],[FREITAG]])*(ROUNDDOWN($B53,10)>=ROUNDDOWN(Kursliste[ANFANGSZEIT],10))*($B53<=Kursliste[ENDZEIT]),Kursliste[EINDEUTIG]),Kursliste[EINDEUTIG],0),2),0)","v":0},{"$f":"IFERROR(INDEX(Kursliste[],MATCH(SUMPRODUCT((Kursliste[TAG]=Kursplan[[#Headers],[SAMSTAG]])*(ROUNDDOWN($B53,10)>=ROUNDDOWN(Kursliste[ANFANGSZEIT],10))*($B53<=Kursliste[ENDZEIT]),Kursliste[EINDEUTIG]),Kursliste[EINDEUTIG],0),2),0)","v":0}]
[null,"20:30:00",{"$f":"IFERROR(INDEX(Kursliste[],MATCH(SUMPRODUCT((Kursliste[TAG]=Kursplan[[#Headers],[SONNTAG]])*(ROUNDDOWN($B54,10)>=ROUNDDOWN(Kursliste[ANFANGSZEIT],10))*($B54<=Kursliste[ENDZEIT]),Kursliste[EINDEUTIG]),Kursliste[EINDEUTIG],0),2),0)","v":0},{"$f":"IFERROR(INDEX(Kursliste[],MATCH(SUMPRODUCT((Kursliste[TAG]=Kursplan[[#Headers],[MONTAG]])*(ROUNDDOWN($B54,10)>=ROUNDDOWN(Kursliste[ANFANGSZEIT],10))*($B54<=Kursliste[ENDZEIT]),Kursliste[EINDEUTIG]),Kursliste[EINDEUTIG],0),2),0)","v":0},{"$f":"IFERROR(INDEX(Kursliste[],MATCH(SUMPRODUCT((Kursliste[TAG]=Kursplan[[#Headers],[DIENSTAG]])*(ROUNDDOWN($B54,10)>=ROUNDDOWN(Kursliste[ANFANGSZEIT],10))*($B54<=Kursliste[ENDZEIT]),Kursliste[EINDEUTIG]),Kursliste[EINDEUTIG],0),2),0)","v":0},{"$f":"IFERROR(INDEX(Kursliste[],MATCH(SUMPRODUCT((Kursliste[TAG]=Kursplan[[#Headers],[MITTWOCH]])*(ROUNDDOWN($B54,10)>=ROUNDDOWN(Kursliste[ANFANGSZEIT],10))*($B54<=Kursliste[ENDZEIT]),Kursliste[EINDEUTIG]),Kursliste[EINDEUTIG],0),2),0)","v":0},{"$f":"IFERROR(INDEX(Kursliste[],MATCH(SUMPRODUCT((Kursliste[TAG]=Kursplan[[#Headers],[DONNERSTAG]])*(ROUNDDOWN($B54,10)>=ROUNDDOWN(Kursliste[ANFANGSZEIT],10))*($B54<=Kursliste[ENDZEIT]),Kursliste[EINDEUTIG]),Kursliste[EINDEUTIG],0),2),0)","v":0},{"$f":"IFERROR(INDEX(Kursliste[],MATCH(SUMPRODUCT((Kursliste[TAG]=Kursplan[[#Headers],[FREITAG]])*(ROUNDDOWN($B54,10)>=ROUNDDOWN(Kursliste[ANFANGSZEIT],10))*($B54<=Kursliste[ENDZEIT]),Kursliste[EINDEUTIG]),Kursliste[EINDEUTIG],0),2),0)","v":0},{"$f":"IFERROR(INDEX(Kursliste[],MATCH(SUMPRODUCT((Kursliste[TAG]=Kursplan[[#Headers],[SAMSTAG]])*(ROUNDDOWN($B54,10)>=ROUNDDOWN(Kursliste[ANFANGSZEIT],10))*($B54<=Kursliste[ENDZEIT]),Kursliste[EINDEUTIG]),Kursliste[EINDEUTIG],0),2),0)","v":0}]
[null,"20:45:00",{"$f":"IFERROR(INDEX(Kursliste[],MATCH(SUMPRODUCT((Kursliste[TAG]=Kursplan[[#Headers],[SONNTAG]])*(ROUNDDOWN($B55,10)>=ROUNDDOWN(Kursliste[ANFANGSZEIT],10))*($B55<=Kursliste[ENDZEIT]),Kursliste[EINDEUTIG]),Kursliste[EINDEUTIG],0),2),0)","v":0},{"$f":"IFERROR(INDEX(Kursliste[],MATCH(SUMPRODUCT((Kursliste[TAG]=Kursplan[[#Headers],[MONTAG]])*(ROUNDDOWN($B55,10)>=ROUNDDOWN(Kursliste[ANFANGSZEIT],10))*($B55<=Kursliste[ENDZEIT]),Kursliste[EINDEUTIG]),Kursliste[EINDEUTIG],0),2),0)","v":0},{"$f":"IFERROR(INDEX(Kursliste[],MATCH(SUMPRODUCT((Kursliste[TAG]=Kursplan[[#Headers],[DIENSTAG]])*(ROUNDDOWN($B55,10)>=ROUNDDOWN(Kursliste[ANFANGSZEIT],10))*($B55<=Kursliste[ENDZEIT]),Kursliste[EINDEUTIG]),Kursliste[EINDEUTIG],0),2),0)","v":0},{"$f":"IFERROR(INDEX(Kursliste[],MATCH(SUMPRODUCT((Kursliste[TAG]=Kursplan[[#Headers],[MITTWOCH]])*(ROUNDDOWN($B55,10)>=ROUNDDOWN(Kursliste[ANFANGSZEIT],10))*($B55<=Kursliste[ENDZEIT]),Kursliste[EINDEUTIG]),Kursliste[EINDEUTIG],0),2),0)","v":0},{"$f":"IFERROR(INDEX(Kursliste[],MATCH(SUMPRODUCT((Kursliste[TAG]=Kursplan[[#Headers],[DONNERSTAG]])*(ROUNDDOWN($B55,10)>=ROUNDDOWN(Kursliste[ANFANGSZEIT],10))*($B55<=Kursliste[ENDZEIT]),Kursliste[EINDEUTIG]),Kursliste[EINDEUTIG],0),2),0)","v":0},{"$f":"IFERROR(INDEX(Kursliste[],MATCH(SUMPRODUCT((Kursliste[TAG]=Kursplan[[#Headers],[FREITAG]])*(ROUNDDOWN($B55,10)>=ROUNDDOWN(Kursliste[ANFANGSZEIT],10))*($B55<=Kursliste[ENDZEIT]),Kursliste[EINDEUTIG]),Kursliste[EINDEUTIG],0),2),0)","v":0},{"$f":"IFERROR(INDEX(Kursliste[],MATCH(SUMPRODUCT((Kursliste[TAG]=Kursplan[[#Headers],[SAMSTAG]])*(ROUNDDOWN($B55,10)>=ROUNDDOWN(Kursliste[ANFANGSZEIT],10))*($B55<=Kursliste[ENDZEIT]),Kursliste[EINDEUTIG]),Kursliste[EINDEUTIG],0),2),0)","v":0}]
[null,"21:00:00",{"$f":"IFERROR(INDEX(Kursliste[],MATCH(SUMPRODUCT((Kursliste[TAG]=Kursplan[[#Headers],[SONNTAG]])*(ROUNDDOWN($B56,10)>=ROUNDDOWN(Kursliste[ANFANGSZEIT],10))*($B56<=Kursliste[ENDZEIT]),Kursliste[EINDEUTIG]),Kursliste[EINDEUTIG],0),2),0)","v":0},{"$f":"IFERROR(INDEX(Kursliste[],MATCH(SUMPRODUCT((Kursliste[TAG]=Kursplan[[#Headers],[MONTAG]])*(ROUNDDOWN($B56,10)>=ROUNDDOWN(Kursliste[ANFANGSZEIT],10))*($B56<=Kursliste[ENDZEIT]),Kursliste[EINDEUTIG]),Kursliste[EINDEUTIG],0),2),0)","v":0},{"$f":"IFERROR(INDEX(Kursliste[],MATCH(SUMPRODUCT((Kursliste[TAG]=Kursplan[[#Headers],[DIENSTAG]])*(ROUNDDOWN($B56,10)>=ROUNDDOWN(Kursliste[ANFANGSZEIT],10))*($B56<=Kursliste[ENDZEIT]),Kursliste[EINDEUTIG]),Kursliste[EINDEUTIG],0),2),0)","v":0},{"$f":"IFERROR(INDEX(Kursliste[],MATCH(SUMPRODUCT((Kursliste[TAG]=Kursplan[[#Headers],[MITTWOCH]])*(ROUNDDOWN($B56,10)>=ROUNDDOWN(Kursliste[ANFANGSZEIT],10))*($B56<=Kursliste[ENDZEIT]),Kursliste[EINDEUTIG]),Kursliste[EINDEUTIG],0),2),0)","v":0},{"$f":"IFERROR(INDEX(Kursliste[],MATCH(SUMPRODUCT((Kursliste[TAG]=Kursplan[[#Headers],[DONNERSTAG]])*(ROUNDDOWN($B56,10)>=ROUNDDOWN(Kursliste[ANFANGSZEIT],10))*($B56<=Kursliste[ENDZEIT]),Kursliste[EINDEUTIG]),Kursliste[EINDEUTIG],0),2),0)","v":0},{"$f":"IFERROR(INDEX(Kursliste[],MATCH(SUMPRODUCT((Kursliste[TAG]=Kursplan[[#Headers],[FREITAG]])*(ROUNDDOWN($B56,10)>=ROUNDDOWN(Kursliste[ANFANGSZEIT],10))*($B56<=Kursliste[ENDZEIT]),Kursliste[EINDEUTIG]),Kursliste[EINDEUTIG],0),2),0)","v":0},{"$f":"IFERROR(INDEX(Kursliste[],MATCH(SUMPRODUCT((Kursliste[TAG]=Kursplan[[#Headers],[SAMSTAG]])*(ROUNDDOWN($B56,10)>=ROUNDDOWN(Kursliste[ANFANGSZEIT],10))*($B56<=Kursliste[ENDZEIT]),Kursliste[EINDEUTIG]),Kursliste[EINDEUTIG],0),2),0)","v":0}]

{"sheet":"Kursliste","index":1,"n_rows":10,"n_cols":8,"rows_kept":10,"merged":[[0,1,0,5],[0,6,0,7]]}
[null,"KURSLISTE",{"$nulls":4},"Kursplan"]
[null,"KURS","ID","TAG","ORT","ANFANGSZEIT","ENDZEIT","EINDEUTIG"]
[null,"Technisches Schreiben","WR 121","MONTAG","Gebäude A","13:00:00","14:00:00",{"$f":"ROW()-ROW(Kursliste[[#Headers],[EINDEUTIG]])","v":1}]
[null,"Technisches Schreiben","WR 121","MITTWOCH","Gebäude A","13:00:00","14:00:00",{"$f":"ROW()-ROW(Kursliste[[#Headers],[EINDEUTIG]])","v":2}]
[null,"Öffentliches Reden","SP-111","MONTAG","Gebäude B","16:00:00","17:00:00",{"$f":"ROW()-ROW(Kursliste[[#Headers],[EINDEUTIG]])","v":3}]
[null,"Gesundheit und Fitness","HPE 295","DIENSTAG","Gebäude B","11:00:00","12:00:00",{"$f":"ROW()-ROW(Kursliste[[#Headers],[EINDEUTIG]])","v":4}]
[null,"Gesundheit und Fitness","HPE 295","DONNERSTAG","Gebäude B","11:00:00","12:00:00",{"$f":"ROW()-ROW(Kursliste[[#Headers],[EINDEUTIG]])","v":5}]
[null,"Algebra","MTH-113","MONTAG","Gebäude C","08:10:00","09:15:00",{"$f":"ROW()-ROW(Kursliste[[#Headers],[EINDEUTIG]])","v":6}]
[null,"Algebra","MTH-113","MITTWOCH","Gebäude C","08:10:00","09:15:00",{"$f":"ROW()-ROW(Kursliste[[#Headers],[EINDEUTIG]])","v":7}]
[null,"Algebra","MTH-113","FREITAG","Gebäude C","08:10:00","09:15:00",{"$f":"ROW()-ROW(Kursliste[[#Headers],[EINDEUTIG]])","v":8}]